Cogmind - Beta 12 X6 @@@ ROGUE MODE // 2023.02.06 @ 20:10:23 Player: leiavoia Result: Escaped! Performance ------------- Evolutions (9) 4500 Regions Visited (33) 6600 Robots Destroyed (857) 4285 Value Destroyed (44954) 44954 Prototype IDs (111) 2220 Alien Tech Used (3) 600 Bonus (57455) 57455 TOTAL SCORE: 120614 Bonus ------- Triggered High Security 500 Triggered Max Security 1000 High Alert Combat Kills 23150 Follower Combat Kills 1835 Aligned with FarCom 300 Met Data Miner 300 Met Imprinter 300 Met Zhirov 300 Met Warlord at Base 500 MAIN.C Attacked Warlord 500 Warlord Defense Kills 22630 Scanned by Researcher 500 Acquired SGEMP 2000 Delivered SGEMP 2000 Win 3000 Friendly Fire -1360 Cogmind --------- Core Integrity 1600/1600 Matter 114/300 Energy 750/775 System Corruption 0% Temperature Cool (33) Movement Treading (171) Location To Epsilon Eridani Parts ------- > --- POWER (2) -------- Antimatter Reactor Micro Antimatter Reactor > --- PROPULSION (8) --- Improved Heavy Siege Treads Improved Heavy Siege Treads Improved Heavy Siege Treads Biometal Heavy Treads > --- UTILITY (11) ----- Advanced Heat Sink Advanced Cooling System High-capacity Storage Unit Improved Energy Well Improved Power Shielding Hardened Medium Armor Plating Medium Reflective Plating Medium Reflective Plating Graphene Brace Remote Force Field System Shield > --- WEAPON (4) ------- Enhanced Nova Cannon Enhanced Nova Cannon Neutron Missile Launcher Point Singularity Launcher > --- INVENTORY (20) --- Light Quantum Reactor Improved Heavy Siege Treads Improved Heavy Siege Treads Electron Diverter Electron Diverter Advanced Heat Sink Advanced Heat Sink Large Storage Unit Linear Accelerator Compact Linear Accelerator Perforator Point Singularity Launcher Point Singularity Launcher Longsword +1 Peak State ------------ > --- POWER ------------ Vortex Chain Reactor > --- PROPULSION ------- Heavy Treads Advanced Heavy Treads Improved Heavy Siege Treads > --- UTILITY ---------- Advanced Cooling System Cargo Storage Unit Makeshift Terrain Scanner Matter Filter Improved Weapon Cycler Medium Regenerative Plating SHELL Armor Advanced Force Field > --- WEAPON ----------- Hypervelocity Multirail Heavy Hardcell Cannon Neutron Missile Launcher > --- INVENTORY -------- Cooled Fission Core Reinforced Antimatter Reactor Advanced Heat Sink Advanced Cooling System High-capacity Storage Unit Improved Energy Well Improved Matter Compressor Quantum Capacitor Medium Reactive Plating Medium Regenerative Plating Advanced Force Field Advanced Force Field Long-range Tractor Beam Compact HERF Cannon Heavy Neutron Cannon Improved Potential Cannon Linear Accelerator Perforator Neutron Missile Launcher Neutron Missile Launcher Neutron Missile Launcher Neutron Missile Launcher Chain Missile Launcher Longsword +1 SGEMP Prototype [Rating: 197] Favorites ----------- Power Micro Fission Core Engine Cooled Ion Engine Power Core Micro Fission Core Reactor Vortex Chain Reactor Propulsion Light Treads Treads Light Treads Leg Aluminum Leg Wheel Compact Wheel Hover Unit Gravmag System Flight Unit Nuclear Pulse Array Utility Advanced Cooling System Device Advanced Cooling System Storage Cargo Storage Unit Processor Machine Analyzer Hackware Advanced Hacking Suite Protection Medium Reactive Plating Weapon Phase Cannon Energy Gun Improved EM Shotgun Energy Cannon Phase Cannon Ballistic Gun Gauss Rifle Ballistic Cannon Hypervelocity Gauss Cannon Launcher Neutron Missile Launcher Special Weapon RU-N14's Throwing Claymores v3 Slashing Weapon Longsword +1 Piercing Weapon CR-A16's Behemoth Slayer Special Melee Weapon Advanced Datajack Build | -11 -10 -10 -9 -9 -9 -8 -8 -7 -7 -7 -7 -6 -6 -6 -6 -6 -5 -5 -5 -5 -5 -5 -5 -4 -4 -4 -4 -4 -3 -3 -3 -2 -1 ------- Run | Jun Mat Min Mat Min Exi Min Mat Fac Low Low Dat Pro Fac Low Low Zio Pro Fac Was Fac Upp Upp Zhi Pro Fac Upp Upp War Pro Res Tes Res Acc Slots Evolved 18 | . . . 2 . . . 2 2 . . . . 2 . . . . 2 . . . . . . 2 . . . . 2 . 2 2 Power 1 | . . . . . . . . . . . . . . . . . . 1 . . . . . . . . . . . . . . . Propulsion 6 | . . . 1 . . . 1 1 . . . . 1 . . . . . . . . . . . . . . . . . . . 2 Utility 9 | . . . 1 . . . 1 1 . . . . 1 . . . . 1 . . . . . . 1 . . . . 2 . 1 . Weapon 2 | . . . . . . . . . . . . . . . . . . . . . . . . . 1 . . . . . . 1 . Parts Attached 811 | 1 9 8 47 6 3 6 32 18 9 19 2 22 73 13 9 6 11 42 4 59 8 7 7 12 77 10 1 115 5 8 42 116 4 Power 45 | . 1 2 3 . . . . . 2 1 . 1 3 . . 1 . 5 . 5 1 . 2 . 4 2 . 5 . . 1 6 . Engine 16 | . 1 2 3 . . . . . 2 1 . 1 2 . . 1 . 2 . 1 . . . . . . . . . . . . . Core 18 | . . . . . . . . . . . . . 1 . . . . 3 . 4 1 . 1 . 2 2 . 3 . . . 1 . Reactor 11 | . . . . . . . . . . . . . . . . . . . . . . . 1 . 2 . . 2 . . 1 5 . Propulsion 138 | . 1 3 12 . . 1 9 2 . 4 . 2 16 3 1 . 3 9 . 18 . . . . 17 1 . 1 . . 6 28 1 Treads 79 | . . 2 11 . . 1 7 2 . 4 . 1 8 3 1 . 3 . . 6 . . . . 6 1 . 1 . . 6 15 1 Leg 11 | . 1 . . . . . . . . . . . . . . . . . . . . . . . . . . . . . . 10 . Wheel 12 | . . 1 1 . . . 1 . . . . 1 4 . . . . 2 . . . . . . . . . . . . . 2 . Hover 1 | . . . . . . . . . . . . . 1 . . . . . . . . . . . . . . . . . . . . Flight 35 | . . . . . . . 1 . . . . . 3 . . . . 7 . 12 . . . . 11 . . . . . . 1 . Utility 352 | 1 3 1 17 1 3 . 8 7 3 7 . 10 21 6 7 1 4 17 4 18 2 3 2 4 36 3 1 84 4 5 18 49 2 Device 228 | 1 . 1 8 . 1 . 2 3 1 2 . 4 14 4 3 . 4 8 3 10 2 3 . 3 19 3 1 74 3 2 12 37 . Storage 16 | . 1 . 1 . 1 . 2 . . . . 1 . . . . . . . 2 . . . . 6 . . . . . . 2 . Processor 1 | . . . . . . . . . . . . . . . . . . 1 . . . . . . . . . . . . . . . Hackware 22 | . . . . . . . . 1 . . . . 1 . 1 . . 7 1 1 . . . . 6 . . . . 3 . . 1 Protection 85 | . 2 . 8 1 1 . 4 3 2 5 . 5 6 2 3 1 . 1 . 5 . . 2 1 5 . . 10 1 . 6 10 1 Artifact . | . . . . . . . . . . . . . . . . . . . . . . . . . . . . . . . . . . Weapon 276 | . 4 2 15 5 . 5 15 9 4 7 2 9 33 4 1 4 4 11 . 18 5 4 3 8 20 4 . 25 1 3 17 33 1 Energy Gun 9 | . 1 1 . 2 . . . . 2 1 . 2 . . . . . . . . . . . . . . . . . . . . . Energy Cannon 72 | . 2 . 8 1 . 1 2 1 1 1 . . 13 1 . 1 2 5 . 5 1 . . 1 4 1 . 9 . 1 6 5 . Ballistic Gun 25 | . . . 1 . . . 3 4 . 4 1 5 3 . . . . . . . . . . . . . . . . . 1 3 . Ballistic Cannon 59 | . 1 1 1 1 . 2 5 . . 1 1 . 3 2 1 1 . . . 4 2 2 2 3 6 . . 4 1 2 4 9 . Launcher 71 | . . . 3 . . 2 4 3 . . . 2 8 1 . 1 1 1 . 4 2 2 . 4 2 2 . 10 . . 4 14 1 Special Weapon 1 | . . . . . . . . . . . . . . . . . . . . . . . . . . . . . . . 1 . . Impact Weapon . | . . . . . . . . . . . . . . . . . . . . . . . . . . . . . . . . . . Slashing Weapon 18 | . . . . . . . 1 1 . . . . 1 . . 1 . 1 . 4 . . . . 5 . . 1 . . 1 2 . Piercing Weapon 8 | . . . . . . . . . . . . . . . . . 1 2 . 1 . . 1 . 1 1 . 1 . . . . . Special Melee Weapon 13 | . . . 2 1 . . . . 1 . . . 5 . . . . 2 . . . . . . 2 . . . . . . . . Unidentified Prototypes 40 | . . . 1 . . . 1 1 . . . . 6 . . . . 1 2 1 . . 1 . 3 1 . 7 . 1 9 5 . Corrupted Parts 7 | . . . . . . . . . . 1 . 3 . . . . . . . . . . . . . . . . . . . 3 . System Corruption 31 | . . . . . . . . . . 1 . 9 . . . . . . . . . . . . . . . . . . . 21 . Parts Lost 93 | . . 7 2 . . . 1 . . 6 . 2 9 1 . . 3 3 . 2 . 1 . 1 7 . . 3 1 . 1 43 . Power 4 | . . 1 . . . . . . . . . . . . . . . 1 . . . . . . . . . . . . . 2 . Propulsion 36 | . . 3 1 . . . 1 . . 3 . 1 6 1 . . . 2 . 2 . . . . 4 . . . . . . 12 . Utility 38 | . . 1 . . . . . . . 1 . 1 3 . . . 3 . . . . 1 . 1 3 . . 3 1 . 1 19 . Weapon 15 | . . 2 1 . . . . . . 2 . . . . . . . . . . . . . . . . . . . . . 10 . Highest Loss Streak 14 | . . 4 1 . . . 1 . . 5 . 1 2 1 . . 3 2 . 2 . 1 . 1 2 . . 1 1 . 1 14 . To Critical Strikes 1 | . . . . . . . . . . . . . . 1 . . . . . . . . . . . . . . . . . . . Average Slot Usage (%) 86 | . 100 94 99 100 99 100 99 100 100 96 77 93 96 98 94 99 99 89 94 91 76 76 65 74 73 68 67 65 73 75 73 68 84 Engine 3 | . 14 14 11 11 11 11 9 7 7 6 7 7 3 . . . 6 3 . . . . . . . . . . . . . . . Core 3 | . . . . . . . . . . . . . 2 6 6 5 . 4 11 10 11 11 11 11 6 6 10 1 5 4 . . . Reactor 1 | . . . . . . . . . . . . . . . . . . . . . . . . . 1 3 . 4 5 4 4 6 8 Treads 21 | . . 21 30 33 33 33 33 38 38 35 30 25 32 28 34 40 39 15 . 2 17 17 17 17 5 15 15 15 15 14 14 11 16 Flight 2 | . . . . . . . . . . . . . . . . . . 11 29 25 . . . . 11 . . . . . . . . Device 14 | . 2 7 11 11 11 11 9 13 7 9 15 16 20 27 18 13 24 11 8 2 17 17 17 17 10 21 20 18 19 15 23 19 20 Storage 6 | . 14 14 11 11 11 11 9 7 7 7 7 7 6 6 6 6 6 3 . 4 5 5 5 5 4 5 5 5 5 4 4 6 8 Hackware 4 | . . . . . . . . 5 7 4 . . 2 . 3 6 . 17 25 25 . . . . 15 . . . . 10 . . 1 Protection 8 | . 11 1 10 11 10 11 17 10 14 14 15 13 8 4 10 13 6 3 . 1 11 11 11 9 3 5 5 7 11 9 11 6 14 Energy Gun 1 | . 8 4 . 6 11 9 . . 5 4 . 5 . . . . . . . . . . . . . . . . . . . . . Energy Cannon 4 | . 5 9 8 9 11 7 6 . 5 2 . . 5 5 6 1 5 7 5 4 1 . . 1 4 1 . 1 1 3 2 3 8 Ballistic Gun 1 | . 10 . 1 . . . 4 12 3 4 . 7 4 . . . . . . . . . . . . . . . . . 1 . . Ballistic Cannon 4 | . 3 14 9 4 . 3 6 . . 2 . . . 6 6 5 6 . . 1 9 10 . 9 2 5 5 4 8 5 2 5 3 Naked Turns . | . . . . . . . . . . . . . . . . . . . . . . . . . . . . . . . . . . Heaviest Build 291 | 14 54 60 67 61 61 64 108 110 128 128 127 127 121 122 129 124 124 129 33 219 218 217 212 212 237 234 238 253 225 233 269 291 154 Greatest Support 300 | 20 20 40 69 60 60 60 80 102 102 105 82 82 140 168 166 166 168 168 35 215 215 215 215 215 225 225 225 225 225 225 225 225 300 Greatest Overweight (x) 11 | . 2 5 2 1 1 1 4 1 1 1 1 7 7 3 . . . 11 . 1 1 1 . . 1 1 1 1 . 1 1 5 . Average Overweight (x) . | . . 3 . . . . 1 . 1 . 1 5 1 2 . . . . . . . . . . . . 1 . . . . . . Largest Inventory Capacity 30 | 8 20 20 20 20 20 20 25 25 25 25 25 25 25 25 25 25 25 25 5 30 30 30 30 30 30 30 30 30 30 30 30 30 20 Average Capacity 23 | 8 10 20 20 20 20 20 23 25 25 25 25 25 25 25 25 25 25 17 5 11 30 30 30 30 17 30 30 30 30 30 30 22 20 Most Carried 30 | 6 9 20 20 20 20 20 25 25 25 25 25 25 25 25 25 25 25 25 5 30 30 30 30 30 30 30 30 30 30 30 30 30 17 Average Carried 22 | 6 8 14 19 20 20 19 23 24 24 24 25 24 24 25 25 24 25 17 4 10 30 29 29 29 15 29 30 29 29 29 28 21 16 Final Capacity 30 | 8 20 20 20 20 20 20 25 25 25 25 25 25 25 25 25 25 25 5 5 30 30 30 30 30 30 30 30 30 30 30 30 30 20 Final Carried 30 | 6 9 20 20 20 20 20 25 25 25 25 25 24 25 25 25 25 25 5 5 30 30 30 30 30 30 30 30 30 30 30 30 28 17 Class Distribution -------------------- 26% | Hauler-Mutant 22% | Scavenger-Mutant 13% | Trapper-Mutant 12% | Mutant 8% | Wizard-Sprinter 5% | Hauler-Tank Dominant Class ---------------- Mutant | -10/Materials Mutant | -10/Mines Scavenger-Mutant | -9/Materials Scavenger-Mutant | -9/Mines Scavenger-Mutant | -9/Exiles Scavenger-Mutant | -8/Mines Scavenger-Mutant | -8/Materials Scavenger-Mutant | -7/Factory Mutant | -7/Lower Caves Scavenger-Mutant | -7/Lower Caves Mutant | -7/Data Miner Mutant | -6/Proximity Caves Trapper-Mutant | -6/Factory Trapper-Mutant | -6/Lower Caves Trapper-Mutant | -6/Lower Caves Trapper-Mutant | -6/Zion Trapper-Mutant | -5/Proximity Caves Hacker-Mutant | -5/Factory Hacker-Sprinter | -5/Waste Wizard-Sprinter | -5/Factory Hauler-Mutant | -5/Upper Caves Hauler-Mutant | -5/Upper Caves Hauler-Mutant | -5/Zhirov Hauler-Mutant | -4/Proximity Caves Wizard-Sprinter | -4/Factory Hauler-Mutant | -4/Upper Caves Hauler-Mutant | -4/Upper Caves Hauler-Mutant | -4/Warlord Hauler-Tank | -3/Proximity Caves Hacker-Tank | -3/Research Hauler-Mutant | -3/Testing Scavenger-Tank | -2/Research Scavenger-Mutant | -1/Access Resources | -11 -10 -10 -9 -9 -9 -8 -8 -7 -7 -7 -7 -6 -6 -6 -6 -6 -5 -5 -5 -5 -5 -5 -5 -4 -4 -4 -4 -4 -3 -3 -3 -2 -1 ----------- Run | Jun Mat Min Mat Min Exi Min Mat Fac Low Low Dat Pro Fac Low Low Zio Pro Fac Was Fac Upp Upp Zhi Pro Fac Upp Upp War Pro Res Tes Res Acc Matter Collected 25565 | 228 109 512 1069 394 . 615 1172 320 429 591 . 386 1867 598 345 47 171 499 102 1060 623 336 84 1449 1146 399 20 4133 203 . 1929 4729 . Remotely 6828 | . . . 53 . . . . . . . . . . . . . . . . . 99 199 . . . . . 2661 77 . 1276 2463 . Salvage Created 33251 | 100 387 209 1893 394 . 679 1385 385 250 410 . 328 1875 190 161 . 360 1070 . 1129 424 249 413 1115 1172 334 . 5427 248 . 6106 6558 . Parts 1379 | 4 30 9 148 13 . 48 73 29 10 14 . 15 94 11 4 . 13 71 . 54 13 4 2 40 52 9 . 196 10 . 181 232 . Haulers Intercepted 20 | . 1 . 5 . . . 2 . . . . . 3 . . . . 1 . 4 . . . . 4 . . . . . . . . Recyclers Shooed 9 | . . . . 1 . 1 1 1 . . . . 3 . . . . 2 . . . . . . . . . . . . . . . Parts Field Recycled . | . . . . . . . . . . . . . . . . . . . . . . . . . . . . . . . . . . Retrieved Matter . | . . . . . . . . . . . . . . . . . . . . . . . . . . . . . . . . . . Parts Self-Destructed 109 | . . . . . . . . . 3 9 . 14 . 9 4 . 6 . . . 11 4 1 32 . 6 . . 10 . . . . Prevented 10 | . . . . . . . . . 7 2 . 1 . . . . . . . . . . . . . . . . . . . . . Kills | -11 -10 -10 -9 -9 -9 -8 -8 -7 -7 -7 -7 -6 -6 -6 -6 -6 -5 -5 -5 -5 -5 -5 -5 -4 -4 -4 -4 -4 -3 -3 -3 -2 -1 ------- Run | Jun Mat Min Mat Min Exi Min Mat Fac Low Low Dat Pro Fac Low Low Zio Pro Fac Was Fac Upp Upp Zhi Pro Fac Upp Upp War Pro Res Tes Res Acc Combat Hostiles Destroyed 760 | . 10 8 49 6 . 18 24 10 4 4 . 8 30 9 4 . 6 13 . 6 15 16 . 28 11 5 . 169 7 . 162 138 . Melee 5 | . . . . . . . . . . . . . . . . . . 4 . 1 . . . . . . . . . . . . . Guns 66 | . 9 2 5 . . 4 1 8 1 2 . 2 1 . . . . . . . . . . . . . . . . . 5 26 . Cannons 219 | . . 5 29 5 . 5 13 . 2 1 . . 10 6 4 . . 6 . 2 7 13 . 16 6 2 . 55 7 . 7 18 . AOE 459 | . . . 15 1 . 9 10 2 . . . 5 17 3 . . 5 3 . 3 8 3 . 11 4 2 . 114 . . 150 94 . Classes Destroyed 27 | 3 4 1 6 . . 1 . 2 . 1 . 1 . . . . . . . . . . . . . 1 . 5 . . 2 . . Worker 21 | 1 1 1 3 . . 2 3 1 . . . . 8 . . . . . . . . . . . 1 . . . . . . . . Builder 22 | . . . 2 . . 1 2 1 . . . . 7 . . . . 7 . 1 . . . . 1 . . . . . . . . Tunneler 5 | 1 . 1 . . . 2 . . . . . . 1 . . . . . . . . . . . . . . . . . . . . Hauler 20 | . 1 . 5 . . . 2 . . . . . 3 . . . . 1 . 4 . . . . 4 . . . . . . . . Recycler 25 | 1 . . 3 1 . 5 4 . . . . . 3 . . . . 3 . 3 . . . . 2 . . . . . . . . Carrier 13 | . . . . . . . . . . . . . . . . . . . . . . . . . . . . . . . 9 4 . Minesweeper 2 | . . . . . . . . . . . . 1 . . . . . . . . . . . 1 . . . . . . . . . Mechanic 25 | . . . 1 . . . 1 . . . . . . . . . . . . . . . . . . . . . . . 13 10 . Operator 3 | . . . 2 . . . . . . . . . . . . . . . . . . . . . 1 . . . . . . . . Watcher 30 | . 1 . 4 . . . 2 2 . . . . 3 . . . . 5 . 6 . . . . 5 . . . . . . 2 . Swarmer 112 | . 6 . 16 3 . 14 2 4 . . . 5 . 4 . . 5 4 . 4 6 2 . 5 4 . . 16 4 . . 8 . Saboteur 26 | . . . . . . . . . . . . . . . . . . . . . . . . . . . . 10 . . 13 3 . Grunt 247 | . 4 3 18 3 . 3 17 2 3 . . . 15 2 2 . . 2 . . 6 4 . 11 . 3 . 60 3 . 50 36 . Brawler 43 | . . . 4 . . . . . . . . . . . . . . . . . . 2 . 4 . 1 . 14 . . 14 4 . Duelist 28 | . . . . . . . . 1 . . . . . 1 1 . . . . . . . . 2 . . . 3 . . 15 5 . Protector 35 | . . . 2 . . . . . . . . . . . . . . . . . . . . 1 . . . 11 . . 12 9 . Researcher 1 | . . . . . . . . . . . . . . . . . . . . . . . . . . . . . . . 1 . . Sentry 25 | . . . 9 . . . 5 . . 1 . 1 2 . 1 . . . . . 1 1 . 3 . . . . . . . 1 . Demolisher 11 | . . . . . . . . . . . . . . . . . . . . . . . . . . . . 6 . . . 5 . Specialist 2 | . . . . . . . . . . . . . . . . . . . . . . . . . . . . 2 . . . . . Hunter 61 | . . . . . . 1 . . 1 . . 1 5 . . . . . . . 2 . . 2 2 . . 8 . . 19 20 . Programmer 94 | . . . . . . . . 3 . 2 . 1 8 1 . . . 7 . 2 . . . . 4 . . 18 . . 25 23 . Behemoth 6 | . . . . . . . . . . 1 . . . 1 . . 1 . . . . . . . 1 1 . 1 . . . . . Investigator 1 | . . . . . . . . . . . . . . . . . . . . . . . . . . . . . . . 1 . . Striker 37 | . . . . . . . . . . . . . . . . . . . . . . . . . . . . 11 . . 8 18 . Executioner 20 | . . . . . . . . . . . . . . . . . . . . . . . . . . . . 9 . . 6 5 . Decomposer 2 | . . . . . . . . . . . . 2 . . . . . . . . . . . . . . . . . . . . . Packrat 2 | . . . . . . . . . . 2 . . . . . . . . . . . . . . . . . . . . . . . Samaritan 4 | . . . . . . . . . . . . . . . . . . . . . . . . . . 4 . . . . . . . Assembled 12 | . . 5 . . . . . . . . . . . . . . . . . . . 7 . . . . . . . . . . . Butcher 1 | . . . . . . . . . . . . . . . . . . . . . . . . . . . . . . . . 1 . Best Kill Streak 49 | 2 3 4 13 3 . 4 9 5 3 2 . 3 11 4 3 . 5 9 . 2 5 6 . 12 5 4 . 24 4 . 49 39 . Combat Bots Only 42 | . 3 4 10 3 . 4 5 4 3 2 . 3 3 4 3 . 5 4 . 2 5 6 . 12 4 4 . 24 4 . 42 37 . Max Kills in Single Turn 11 | 1 2 1 4 1 . 2 3 2 1 1 . 3 3 2 1 . 4 4 . 2 3 2 . 3 5 2 . 10 1 . 11 7 . Gunslinging 1 | . 1 . . . . . . . . . . . . . . . . . . . . . . . . . . . . . . . . Exploded 11 | . . . 4 1 . 2 3 1 . . . 3 2 2 . . 4 2 . 2 3 2 . 3 4 2 . 10 . . 11 6 . Melee 1 | . . . . . . . . . . . . . . . . . . 1 . 1 . . . . . . . . . . . . . Uniques/NPCs Destroyed 1 | . . . . 1 . . . . . . . . . . . . . . . . . . . . . . . . . . . . . YI-UF0 (-9/Mines) Combat | -11 -10 -10 -9 -9 -9 -8 -8 -7 -7 -7 -7 -6 -6 -6 -6 -6 -5 -5 -5 -5 -5 -5 -5 -4 -4 -4 -4 -4 -3 -3 -3 -2 -1 -------- Run | Jun Mat Min Mat Min Exi Min Mat Fac Low Low Dat Pro Fac Low Low Zio Pro Fac Was Fac Upp Upp Zhi Pro Fac Upp Upp War Pro Res Tes Res Acc Damage Taken 31004 | . 356 900 1371 119 . 366 745 545 222 1124 . 300 1831 601 319 . 649 906 . 417 398 548 . 2067 1703 457 12 3297 288 13 1130 10274 46 Core 2222 | . 74 157 112 66 . 27 110 52 6 129 . 16 89 70 6 . 77 119 . 59 . 20 . 26 181 18 . 169 20 . 48 571 . Absorbed by Shields 6981 | . . . . . . . . . . . . 124 632 215 120 . 84 . . . 147 91 . . 321 . 13 2799 100 14 928 1393 . Reduced by Siege Mode 1623 | . . . . . . . . . . . . . . . . . . . . 28 47 85 . 289 119 23 . 490 9 . 155 378 . Regen/Repaired (Parts) 2355 | . . . 47 . . . . . . . . . 257 . . . . . . 1169 . . . . . . . 166 . . 4 712 . Core Remaining (%) 69 | 100 . 7 . . . 48 80 . . . . 71 . . . . 71 . . . . . . 77 . . . . 57 . 96 60 100 Volleys Fired 1505 | 19 63 49 113 18 . 34 77 29 10 35 . 21 124 29 10 . 8 60 . 57 28 28 . 48 90 23 . 215 13 10 106 172 16 Largest 3 | 2 2 2 2 2 . 2 2 2 2 2 . 2 2 2 2 . 1 2 . 2 2 2 . 2 3 2 . 3 2 1 3 3 1 Hottest 310 | 70 95 132 132 113 . 113 119 69 114 114 . 73 175 130 125 . 85 170 . 127 141 118 . 155 221 165 . 270 170 110 310 270 120 Shots Fired 2300 | 35 117 81 213 28 . 60 141 48 20 72 . 42 196 49 18 . 8 103 . 66 48 51 . 91 114 25 . 255 19 10 142 232 16 Gun 492 | 35 101 12 38 16 . 20 4 42 10 59 . 39 47 . . . . . . . . . . . . . . . . . 12 57 . Cannon 1433 | . 16 69 162 12 . 31 124 1 10 13 . . 114 47 18 . 4 97 . 61 40 45 . 78 109 22 . 166 19 10 60 92 13 Launcher 365 | . . . 13 . . 9 13 5 . . . 3 35 2 . . 4 6 . 5 8 6 . 13 5 3 . 89 . . 60 83 3 Special 10 | . . . . . . . . . . . . . . . . . . . . . . . . . . . . . . . 10 . . Kinetic 1038 | 19 54 42 100 2 . 10 66 42 . 67 . 23 55 37 10 . . . . 18 39 45 . 56 42 6 . 135 15 . 45 110 . Thermal 770 | 16 38 39 100 10 . 21 62 . . . . . 105 10 8 . 4 97 . 43 1 . . 22 67 16 . 31 4 10 27 26 13 Explosive 374 | . . . 13 . . 9 13 5 . . . 3 35 2 . . 4 6 . 4 8 6 . 13 5 3 . 89 . . 70 83 3 Electromagnetic 118 | . 25 . . 16 . 20 . 1 20 5 . 16 1 . . . . . . 1 . . . . . . . . . . . 13 . Robot Hit Streak 70 | 4 14 5 19 17 . 9 18 16 32 13 . 18 21 12 24 . 4 10 . 4 13 31 . 22 35 12 . 70 10 . 40 33 . Robot Miss Streak 9 | 2 9 7 3 2 . 5 2 1 2 3 . 3 5 1 . . 1 3 . 1 2 1 . 1 4 1 . 4 2 . 1 5 . Penetration Max 3 | . . . . . . . . . . . . . . . . . . . . . 1 1 . 1 . . . 1 . . 2 3 . Secondary Targets 2 | . 1 . . . . . . 1 . . . . . . . . . . . . . . . . . . . . . . . . . Max Gunslinging Chain 1 | . 1 . . . . . . 1 . . . . . . . . . . . . . . . . . . . . . . . . . Shots Hit Robots 1411 | 20 68 38 134 24 . 26 98 40 19 49 . 31 117 24 15 . 10 60 . 32 36 35 6 68 71 21 . 173 14 . 52 130 . Core Hits 1710 | 6 23 15 83 16 . 36 59 25 8 15 . 23 104 14 7 . 6 48 . 19 32 27 3 53 32 18 . 353 12 . 362 311 . Critical Kills 69 | . . 1 4 . . . . . . . . . 1 . . . . 1 . 3 5 7 . 7 1 1 . 3 . . 7 28 . Critical Parts Destroyed 106 | . . 2 5 . . . . . . 2 . . . . . . . . . 2 13 4 . 4 6 . . 7 1 . 11 49 . Critical Strikes 249 | 1 3 4 13 . . . 3 . . 3 . . 1 3 1 . . 4 . 7 18 13 2 18 10 1 . 19 2 . 24 99 . Burn 5 | 1 3 1 . . . . . . . . . . . . . . . . . . . . . . . . . . . . . . . Meltdown 5 | . . 1 . . . . . . . . . . 1 . . . . 1 . . . . . 1 . 1 . . . . . . . Destroy 194 | . . 2 9 . . . . . . 3 . . . . . . . . . 5 18 12 . 10 7 . . 12 1 . 19 96 . Blast 34 | . . . 4 . . . 3 . . . . . . 3 1 . . . . . . 1 . 7 1 . . 7 1 . 3 3 . Sever 7 | . . . . . . . . . . . . . . . . . . 2 . 2 . . . . 1 . . . . . 2 . . Impale 4 | . . . . . . . . . . . . . . . . . . 1 . . . . 2 . 1 . . . . . . . . Melee Attacks 353 | . . . . 1 . . . 2 2 . . . 2 . . 1 7 55 . 170 . . 6 . 106 1 . . . . . . . Impact . | . . . . . . . . . . . . . . . . . . . . . . . . . . . . . . . . . . Slashing 322 | . . . . . . . . 2 . . . . 1 . . 1 . 46 . 170 . . . . 102 . . . . . . . . Piercing 27 | . . . . . . . . . . . . . . . . . 7 9 . . . . 6 . 4 1 . . . . . . . Sneak Attacks 25 | . . . . 1 . . . 1 2 . . . 1 . . . . 3 . 7 . . . . 10 . . . . . . . . Combat Hostiles 4 | . . . . . . . . . 2 . . . . . . . . 1 . . . . . . 1 . . . . . . . . Follow-up Attacks 3 | . . . . . . . . . . . . . . . . . . 3 . . . . . . . . . . . . . . . Damage Inflicted 160118 | 219 806 815 4598 498 . 1074 3267 1350 443 1095 . 962 7967 1576 515 . 624 3508 . 1960 1279 1711 314 4784 3962 1420 16 36991 878 . 45336 32114 36 Guns 6292 | 219 627 191 380 219 . 198 42 754 171 899 . 555 776 . . . . . . . . . . . . . . . . . 162 1099 . Cannons 32437 | . 179 622 2686 216 . 257 2163 36 272 172 . . 2221 1284 515 . 123 1147 . 176 520 795 . 1820 1499 774 . 8804 878 . 1244 4034 . Explosions 115452 | . . . 1518 53 . 503 1026 457 . 24 . 407 4909 292 . . 337 1162 . 231 759 916 . 2964 518 646 . 28187 . . 43612 26931 . Melee 5247 | . . . . . . . . 103 . . . . . . . . 164 1199 . 1522 . . 314 . 1945 . . . . . . . . Ramming 372 | . . 2 14 10 . 116 36 . . . . . 61 . . . . . . 31 . . . . . . 16 . . . . 50 36 Kinetic 25558 | 82 265 395 1253 20 . 86 952 754 . 992 . 322 953 1092 304 . . . . 176 488 795 . 1208 1227 347 . 8044 791 . 1376 3636 . Thermal 17944 | 137 339 418 1813 249 . 263 1253 34 . . . 41 2159 192 211 . 123 1547 . . 32 . . 730 272 427 . 1139 87 . 1584 4894 . Explosive 108803 | . . . 1518 . . 411 1026 423 . . . 366 4610 292 . . 337 762 . 231 759 916 . 2846 518 646 . 27808 . . 42058 23276 . Electromagnetic 1876 | . 202 . . 219 . 198 . 36 443 103 . 233 184 . . . . . . . . . . . . . . . . . . 258 . Impact . | . . . . . . . . . . . . . . . . . . . . . . . . . . . . . . . . . . Slashing 4717 | . . . . . . . . 103 . . . . . . . . . 918 . 1522 . . . . 1856 . . . . . 318 . . Piercing 848 | . . . . . . . . . . . . . . . . . 164 281 . . . . 314 . 89 . . . . . . . . Highest Corruption 36 | . . . . . . . . 1 1 2 2 12 3 3 3 3 . 3 3 3 . 4 4 4 4 . . 7 4 1 6 36 . Average Corruption 5 | . . . . . . . . 1 1 1 2 2 2 3 3 3 . 1 3 2 . 4 4 4 3 . . 3 4 1 3 24 . Corruption Purged 14 | . . . . . . . . . . . . . . . . . . . . 5 . . . . 4 . . 5 . . . . . Corruption Blocked 17 | . . . . . . . . . . . . . . . . . . . . . . . . . . . . 8 . . . 9 . Effects 544 | . . . . . . . . . 9 24 2 34 39 35 15 2 . 17 4 5 . 11 8 28 38 . . 79 20 1 41 132 . Message Errors 137 | . . . . . . . . . 4 9 . 3 12 10 5 . . 1 1 2 . 3 2 8 6 . . 15 4 . 10 42 . Matter Fused 135 | . . . . . . . . . 2 6 1 11 11 4 1 1 . 6 2 1 . 2 2 8 9 . . 21 5 1 8 33 . Heat Flow Errors 63 | . . . . . . . . . 2 2 . 4 7 4 1 . . 2 1 . . 2 1 4 5 . . 10 2 . 5 11 . Energy Discharges 67 | . . . . . . . . . 1 1 1 5 4 3 4 . . 4 . 1 . 1 . 3 3 . . 13 2 . 8 13 . Parts Rejected 5 | . . . . . . . . . . . . . . . . . . 1 . . . . . . 1 . . 1 . . . 2 . Data Loss (minor) 67 | . . . . . . . . . . 3 . 5 1 7 1 1 . 2 . 1 . . 2 3 10 . . 10 2 . 6 13 . Data Loss (major) 23 | . . . . . . . . . . . . 3 1 2 . . . . . . . 1 1 . 1 . . 3 1 . 1 9 . Misfires 27 | . . . . . . . . . . 2 . 3 3 1 2 . . 1 . . . 1 . 1 2 . . 3 3 . 2 3 . Alerts 10 | . . . . . . . . . . 1 . . . 2 . . . . . . . . . 1 . . . 2 1 . 1 2 . Weapon Failures 10 | . . . . . . . . . . . . . . 2 1 . . . . . . 1 . . 1 . . 1 . . . 4 . Overload Shots 6 | . . . . . . . . . . . . . 5 1 . . . . . . . . . . . . . . . . . . . Effects 1 | . . . . . . . . . . . . . 1 . . . . . . . . . . . . . . . . . . . . Heat Surge 1 | . . . . . . . . . . . . . 1 . . . . . . . . . . . . . . . . . . . . Overflow Damage 8053 | . 6 7 30 10 . 19 58 97 . 23 . 1 412 70 7 . 146 344 . 151 21 22 187 260 437 110 6 1416 7 . 2223 1983 . Projectiles 1221 | . 6 7 24 10 . 11 13 . . 23 . . 65 17 7 . 62 10 . . . 19 . 37 60 102 . 239 7 . 91 411 . Explosions 5821 | . . . 6 . . 8 39 24 . . . 1 327 53 . . 84 154 . . 21 3 . 223 . 8 . 1177 . . 2132 1561 . Melee 1011 | . . . . . . . 6 73 . . . . 20 . . . . 180 . 151 . . 187 . 377 . 6 . . . . 11 . Knockbacks 133 | . . 5 10 . . . 9 . . 1 . . 2 5 . . . . . . 10 3 . 9 11 . . 36 6 . 7 18 1 Impact 3 | . . . . . . . 1 . . . . . . . . . . . . . . . . . . . . . . . . 1 1 Kinetic 124 | . . 4 10 . . . 8 . . 1 . . 2 4 . . . . . . 7 3 . 9 11 . . 36 6 . 7 16 . Secondary 6 | . . 1 . . . . . . . . . . . 1 . . . . . . 3 . . . . . . . . . . 1 . Self-Inflicted Damage 2018 | . . . 31 55 . 45 58 62 . . . 16 403 . . . 81 108 . . . 51 . . . . . 329 . . 116 663 . Shots 39 | . . . 1 1 . 3 1 1 . . . 1 11 . . . 3 2 . . . 2 . . . . . 4 . . 1 8 . Rammed 25 | . . 1 1 2 . 11 1 . . . . . 4 . . . . . . 1 . . . . . . 2 . . . . 1 1 Targets Rammed 29 | . . 1 1 2 . 14 2 . . . . . 4 . . . . . . 1 . . . . . . 2 . . . . 1 1 Kicked . | . . . . . . . . . . . . . . . . . . . . . . . . . . . . . . . . . . Crushed 4 | . . . . . . 3 1 . . . . . . . . . . . . . . . . . . . . . . . . . . Highest Temperature 375 | 110 353 305 135 45 . 75 102 . 219 190 . 261 248 215 160 . . 255 116 252 15 244 212 219 375 54 . 321 210 . 278 363 . Average Temperature 59 | 48 88 114 29 11 . 23 24 . 75 62 . 124 59 97 90 . . 37 67 35 6 131 111 39 101 31 . 77 86 . 94 87 . Received Heat Transfer 3593 | . 111 175 414 12 . 36 441 54 81 162 . 20 261 39 85 . 72 18 . 9 72 191 . 472 24 45 . 259 94 . 55 391 . Effects 21 | . 3 2 . . . . . . . . . . . . . . . . . 1 . . . . 6 . . 4 . . 3 2 . Shutdowns 3 | . 1 . . . . . . . . . . . . . . . . . . . . . . . 1 . . . . . . 1 . Energy Bleed 3 | . . . . . . . . . . . . . . . . . . . . . . . . . 1 . . 1 . . . 1 . Interference 13 | . 2 2 . . . . . . . . . . . . . . . . . 1 . . . . 2 . . 3 . . 3 . . Matter Decay 1 | . . . . . . . . . . . . . . . . . . . . . . . . . 1 . . . . . . . . Damage (minor) 1 | . . . . . . . . . . . . . . . . . . . . . . . . . 1 . . . . . . . . Siege Activations 42 | . . . . . . . . . . . . . . . . . . . . 1 4 3 . 6 4 3 . 10 2 . 2 7 . Total Turns 3333 | . . . . . . . . . . . . . . . . . . . . 27 167 237 . 102 71 88 . 1676 28 . 776 161 . Longest Duration 1435 | . . . . . . . . . . . . . . . . . . . . 27 100 171 . 58 24 73 . 1435 16 . 397 79 . Robots Corrupted 5 | . 1 . . 1 . . . . 1 1 . 1 . . . . . . . . . . . . . . . . . . . . . Combat Hostiles 4 | . 1 . . . . . . . 1 1 . 1 . . . . . . . . . . . . . . . . . . . . . Parts Fried 9 | . 2 . . 3 . . . . 1 1 . 1 1 . . . . . . . . . . . . . . . . . . . . Impact Corruptions 5 | . . . . . . . 1 . . . . . 1 . . . . . . 1 . . . . . . 1 . . . . 1 . Robots Melted 6 | . . 1 . . . . . . . . . . 2 . . . . 1 . . . . . 1 . 1 . . . . . . . Combat Hostiles 4 | . . 1 . . . . . . . . . . 2 . . . . . . . . . . 1 . . . . . . . . . Parts Melted 25 | 1 1 . 3 1 . 1 . . . . . . 7 . . . . 2 . . . . . 5 . 2 . . . . . 2 . Heat Transferred 18964 | 481 1073 888 2812 383 . 446 1850 50 . . . 50 2374 259 259 . 148 1632 . . 50 . . 976 285 444 . 300 . . 1270 2934 . Parts Sabotaged . | . . . . . . . . . . . . . . . . . . . . . . . . . . . . . . . . . . Parts Stolen . | . . . . . . . . . . . . . . . . . . . . . . . . . . . . . . . . . . Parts Stripped . | . . . . . . . . . . . . . . . . . . . . . . . . . . . . . . . . . . Power Chain Reactions 37 | . . . . 1 . 2 . 1 . 1 . 1 1 . . . . . . . . . . 1 . . . 8 . . 6 15 . Missiles Intercepted . | . . . . . . . . . . . . . . . . . . . . . . . . . . . . . . . . . . Alert | -11 -10 -10 -9 -9 -9 -8 -8 -7 -7 -7 -7 -6 -6 -6 -6 -6 -5 -5 -5 -5 -5 -5 -5 -4 -4 -4 -4 -4 -3 -3 -3 -2 -1 ------- Run | Jun Mat Min Mat Min Exi Min Mat Fac Low Low Dat Pro Fac Low Low Zio Pro Fac Was Fac Upp Upp Zhi Pro Fac Upp Upp War Pro Res Tes Res Acc Peak Influence 8675 | 15 333 72 890 339 . 296 584 322 . . . . 1360 . . . . 359 6 211 . . . . 295 . . . . 20 5898 8675 5488 Initial 5204 | . 9 4 . 339 . . 115 244 . . . . . . . . . . 6 4 . . . . 234 . . . . . . 3317 5204 Average 1243 | 3 145 18 589 207 . 100 374 208 . . . . 370 . . . . 193 6 61 . . . . 136 . . . . 13 4932 7174 5266 Maximum Alert Level 5 | . 1 . 3 1 . 1 2 1 . . . . 4 . . . . 1 . 1 . . . . 1 . . . . . 5 5 5 Low Security (%) 52 | 100 80 100 10 46 . 82 25 53 . . . . 57 . . . . 34 100 99 . . . . 82 . . . . 100 . . . Level 1 14 | . 19 . 13 53 . 17 20 46 . . . . 10 . . . . 65 . . . . . . 17 . . . . . . . . Level 2 7 | . . . 36 . . . 53 . . . . . 9 . . . . . . . . . . . . . . . . . . . . Level 3 5 | . . . 40 . . . . . . . . . 8 . . . . . . . . . . . . . . . . . . . . Level 4 1 | . . . . . . . . . . . . . 13 . . . . . . . . . . . . . . . . . . . . Level 5 1 | . . . . . . . . . . . . . . . . . . . . . . . . . . . . . . . . 4 100 High Security 8 | . . . . . . . . . . . . . . . . . . . . . . . . . . . . . . . . 95 . Max Security 6 | . . . . . . . . . . . . . . . . . . . . . . . . . . . . . . . 99 . . Sterilizations 3 | . . . 1 . . . . . . . . . . . . . . . . . . . . . . . . . . . 1 1 . Squads Dispatched 128 | . 2 . 7 . . . 8 6 . 1 . . 18 . . . . 8 . 11 . . . 1 13 . . . . . 43 2 8 Investigation 24 | . 2 . 1 . . . . 1 . . . . 6 . . . . . . 6 . . . . 5 . . . . . . 1 2 Extermination 20 | . . . . . . . . 2 . . . . 5 . . . . 4 . 3 . . . . 5 . . . . . . . 1 Reinforcement 27 | . . . 3 . . . 5 2 . . . . 5 . . . . 4 . 1 . . . . 3 . . . . . 1 1 2 Assault 53 | . . . 3 . . . . . . 1 . . 2 . . . . . . 1 . . . 1 . . . . . . 42 . 3 Garrison 4 | . . . . . . . 3 1 . . . . . . . . . . . . . . . . . . . . . . . . . Intercept . | . . . . . . . . . . . . . . . . . . . . . . . . . . . . . . . . . . Searches Triggered . | . . . . . . . . . . . . . . . . . . . . . . . . . . . . . . . . . . Data Miner Redirects 13 | . . . . . . . . . . . . . 5 . . . . . . 6 . . . . 1 . . . . . . . 1 Construction Impeded 7 | . . . 1 . . . 1 1 . . . . 1 . . . . 2 . 1 . . . . . . . . . . . . . Haulers Reinforced 6 | . . . . . . . . . . . . . 3 . . . . 1 . . . . . . 2 . . . . . . . . Active Scanning Responses . | . . . . . . . . . . . . . . . . . . . . . . . . . . . . . . . . . . Cargo Convoy Interrupts . | . . . . . . . . . . . . . . . . . . . . . . . . . . . . . . . . . . Stealth | -11 -10 -10 -9 -9 -9 -8 -8 -7 -7 -7 -7 -6 -6 -6 -6 -6 -5 -5 -5 -5 -5 -5 -5 -4 -4 -4 -4 -4 -3 -3 -3 -2 -1 --------- Run | Jun Mat Min Mat Min Exi Min Mat Fac Low Low Dat Pro Fac Low Low Zio Pro Fac Was Fac Upp Upp Zhi Pro Fac Upp Upp War Pro Res Tes Res Acc Distress Signals 26 | . 3 . 2 . . . 4 . . . . . 4 . . . . 2 . . . . . . 4 . . . . . . 7 . Communications Jammed . | . . . . . . . . . . . . . . . . . . . . . . . . . . . . . . . . . . Distress Signals . | . . . . . . . . . . . . . . . . . . . . . . . . . . . . . . . . . . Times Spotted 798 | . 19 13 68 6 . 18 38 14 6 4 . 10 47 9 4 . 5 28 . 19 12 16 . 31 33 4 1 137 7 . 76 171 2 Peak Tracking Total 32 | . 5 6 10 3 . 4 4 4 4 4 . 3 7 3 3 . 5 4 . 5 5 6 . 7 6 4 1 13 4 . 25 32 4 Tactical Retreats 64 | . 2 3 2 . . . 2 . 1 2 . 1 2 5 . . . 7 . 4 1 1 . 2 10 . . 2 . . 1 15 1 Traps | -11 -10 -10 -9 -9 -9 -8 -8 -7 -7 -7 -7 -6 -6 -6 -6 -6 -5 -5 -5 -5 -5 -5 -5 -4 -4 -4 -4 -4 -3 -3 -3 -2 -1 ------- Run | Jun Mat Min Mat Min Exi Min Mat Fac Low Low Dat Pro Fac Low Low Zio Pro Fac Was Fac Upp Upp Zhi Pro Fac Upp Upp War Pro Res Tes Res Acc Traps Triggered 15 | . 4 . 1 . . . . 1 . . . . . . . . . 3 . 2 . . . . 1 . . . . 1 2 . . Indirectly . | . . . . . . . . . . . . . . . . . . . . . . . . . . . . . . . . . . Trap Hack Attempts 209 | . . . 74 . . . . . . . . . 100 . . . . 20 . . . . . . 15 . . . . . . . . Triggered 2 | . . . 1 . . . . . . . . . . . . . . . . . . . . . 1 . . . . . . . . Disarmed 15 | . . . . . . . . . . . . . 1 . . . . . . 7 . . . . 7 . . . . . . . . Reprogrammed 24 | . . . 6 . . . . . . . . . 8 . . . . 4 . 2 . . . . 4 . . . . . . . . Reused 14 | . . . 3 . . . . . . . . 1 . 2 . . . 3 . 1 . . . . 4 . . . . . . . . Traps Extracted 30 | . . . 4 . . . . . 1 1 . 1 13 6 1 . . 3 . . . . . . . . . . . . . . . Installed 30 | . . . 3 . . . . . . . . 5 9 9 1 . . 3 . . . . . . . . . . . . . . . Triggered 57 | . . . 3 . . . . . . 1 . 2 . 2 . . . 3 . 1 . . . 1 4 . . 40 . . . . . Most Traps Carried 12 | . . 3 4 4 4 4 4 4 4 4 4 8 12 12 9 9 8 8 3 . . . . . . . . . . . . . . Machines | -11 -10 -10 -9 -9 -9 -8 -8 -7 -7 -7 -7 -6 -6 -6 -6 -6 -5 -5 -5 -5 -5 -5 -5 -4 -4 -4 -4 -4 -3 -3 -3 -2 -1 ---------- Run | Jun Mat Min Mat Min Exi Min Mat Fac Low Low Dat Pro Fac Low Low Zio Pro Fac Was Fac Upp Upp Zhi Pro Fac Upp Upp War Pro Res Tes Res Acc Machines Disabled 91 | . . . 5 . . 7 2 5 . . . . 23 . . . . 6 . . . . . 2 1 2 . 7 . . 18 11 2 Max in Single Turn 9 | . . . 1 . . 3 1 2 . . . . 4 . . . . 4 . . . . . 2 1 1 . 3 . . 9 2 1 Garrison Access 13 | . . . . . . . . . . . . . 1 . . . . 2 . 4 . . . . 2 . . . . 1 1 2 . Machines Repaired . | . . . . . . . . . . . . . . . . . . . . . . . . . . . . . . . . . . Machines Sabotaged . | . . . . . . . . . . . . . . . . . . . . . . . . . . . . . . . . . . Overloaded Fab Kills . | . . . . . . . . . . . . . . . . . . . . . . . . . . . . . . . . . . Hacking | -11 -10 -10 -9 -9 -9 -8 -8 -7 -7 -7 -7 -6 -6 -6 -6 -6 -5 -5 -5 -5 -5 -5 -5 -4 -4 -4 -4 -4 -3 -3 -3 -2 -1 --------- Run | Jun Mat Min Mat Min Exi Min Mat Fac Low Low Dat Pro Fac Low Low Zio Pro Fac Was Fac Upp Upp Zhi Pro Fac Upp Upp War Pro Res Tes Res Acc Machines Accessed 131 | . 9 1 10 1 2 . 1 3 . . 4 . 16 . . . 1 11 . 36 . 2 4 . 18 1 1 3 . 3 . 1 3 Terminals 68 | . 8 1 9 1 . . 1 2 . . . . 8 . . . 1 6 . 15 . 1 . . 10 . . . . 2 . 1 2 Fabricators 16 | . . . . . . . . . . . . . 4 . . . . . . 6 . . . . 5 . . . . . . . 1 Repair Stations 7 | . . . 1 . . . . . . . . . 1 . . . . 1 . 4 . . . . . . . . . . . . . Recycling Units 13 | . 1 . . . . . . 1 . . . . 2 . . . . 2 . 6 . . . . 1 . . . . . . . . Scanalyzers 2 | . . . . . . . . . . . . . . . . . . . . 2 . . . . . . . . . . . . . Garrison Access 9 | . . . . . . . . . . . . . 1 . . . . 2 . 3 . . . . 2 . . . . 1 . . . Total Hacks 476 | . 27 2 29 5 2 . 2 10 . . 29 . 48 . . . 1 65 . 125 . 2 17 . 87 1 1 9 . 5 . 3 6 Successful 329 | . 12 . 17 1 2 . 1 3 . . 29 . 25 . . . 1 33 . 115 . 2 17 . 59 1 1 9 . 1 . . . Failed 145 | . 15 2 11 4 . . 1 7 . . . . 23 . . . . 32 . 9 . . . . 28 . . . . 4 . 3 6 Catastrophic 24 | . 2 . 1 . . . . 1 . . . . 8 . . . . 4 . . . . . . 3 . . . . 3 . 1 1 Database Lockouts 2 | . . . 1 . . . . . . . . . . . . . . . . 1 . . . . . . . . . . . . . Manual 221 | . 19 . 13 5 1 . 2 9 . . . . 21 . . . . 34 . 52 . . . . 58 . . 1 . 3 . . 3 Terminals 276 | . 25 2 26 5 . . 2 8 . . . . 26 . . . 1 45 . 60 . 1 . . 66 . . . . 3 . 3 3 Fabricators 39 | . . . . . . . . . . . . . 8 . . . . . . 15 . . . . 13 . . . . . . . 3 Repair Stations 30 | . . . 3 . . . . . . . . . 7 . . . . 8 . 12 . . . . . . . . . . . . . Recycling Units 44 | . 2 . . . . . . 2 . . . . 6 . . . . 10 . 19 . . . . 5 . . . . . . . . Scanalyzers 16 | . . . . . . . . . . . . . . . . . . . . 16 . . . . . . . . . . . . . Garrison Access 11 | . . . . . . . . . . . . . 1 . . . . 2 . 3 . . . . 3 . . . . 2 . . . Terminal Hacks 174 | . 10 . 13 1 2 . . 2 . . 29 . 11 . . . 1 18 . 29 . 2 17 . 28 1 1 9 . . . . . Record 28 | . . . . . 1 . . . . . 11 . . . . . 1 . . . . 1 5 . . 1 . 8 . . . . . Part Schematic 26 | . 2 . . . . . . . . . 10 . 3 . . . . 1 . 4 . . 4 . 2 . . . . . . . . Robot Schematic 5 | . . . . . . . . . . . 5 . . . . . . . . . . . . . . . . . . . . . . Robot Analysis 23 | . 2 . 3 1 . . . . . . . . . . . . . . . 1 . . 4 . 12 . . . . . . . . Prototype ID Bank 22 | . 4 . 2 . . . . . . . 3 . 2 . . . . 1 . 5 . . 4 . 1 . . . . . . . . Open Door 3 | . . . . . . . . . . . . . . . . . . . . . . 1 . . . . 1 1 . . . . . Level Access Points 1 | . . . . . . . . . . . . . . . . . . . . 1 . . . . . . . . . . . . . Branch Access Points 5 | . . . 1 . . . . . . . . . 1 . . . . 1 . 1 . . . . 1 . . . . . . . . Emergency Access Points 4 | . . . 1 . . . . . . . . . . . . . . 1 . 1 . . . . 1 . . . . . . . . Machine Index 1 | . . . . . . . . . . . . . . . . . . . . 1 . . . . . . . . . . . . . Terminal Index 3 | . . . . . . . . 1 . . . . . . . . . 1 . 1 . . . . . . . . . . . . . Fabricator Index 2 | . . . . . . . . . . . . . 1 . . . . 1 . . . . . . . . . . . . . . . Recycling Unit Index 1 | . . . . . . . . 1 . . . . . . . . . . . . . . . . . . . . . . . . . Alert Level 2 | . . . . . . . . . . . . . . . . . . 1 . 1 . . . . . . . . . . . . . Unreport Threat 17 | . 2 . 1 . . . . . . . . . 2 . . . . 3 . 4 . . . . 5 . . . . . . . . Locate Traps 8 | . . . 1 . . . . . . . . . 2 . . . . 5 . . . . . . . . . . . . . . . Disarm Traps 3 | . . . . . . . . . . . . . . . . . . . . 2 . . . . 1 . . . . . . . . Reprogram Traps 1 | . . . . . . . . . . . . . . . . . . . . 1 . . . . . . . . . . . . . Dispatch Records 1 | . . . . . . . . . . . . . . . . . . . . 1 . . . . . . . . . . . . . Maintenance Status 2 | . . . . . . . . . . . . . . . . . . . . 1 . . . . 1 . . . . . . . . Recall Investigation 2 | . . . . . . . . . . . . . . . . . . . . 1 . . . . 1 . . . . . . . . Recall Extermination 3 | . . . . . . . . . . . . . . . . . . . . . . . . . 3 . . . . . . . . Hauler Manifests 4 | . . . 1 . . . . . . . . . . . . . . 1 . 2 . . . . . . . . . . . . . Registered Components 3 | . . . 1 . . . . . . . . . . . . . . 1 . 1 . . . . . . . . . . . . . Zone Layout 3 | . . . 2 . . . . . . . . . . . . . . 1 . . . . . . . . . . . . . . . EX-Prototype ID Bank 1 | . . . . . 1 . . . . . . . . . . . . . . . . . . . . . . . . . . . . Fabricator Hacks 26 | . . . . . . . . . . . . . 4 . . . . . . 12 . . . . 10 . . . . . . . . Network Status 1 | . . . . . . . . . . . . . 1 . . . . . . . . . . . . . . . . . . . . Load Schematic 13 | . . . . . . . . . . . . . 2 . . . . . . 6 . . . . 5 . . . . . . . . Build 12 | . . . . . . . . . . . . . 1 . . . . . . 6 . . . . 5 . . . . . . . . Repair Station Hacks 21 | . . . 2 . . . . . . . . . 5 . . . . 2 . 12 . . . . . . . . . . . . . Scan Component 12 | . . . 1 . . . . . . . . . 3 . . . . 2 . 6 . . . . . . . . . . . . . Repair 9 | . . . 1 . . . . . . . . . 2 . . . . . . 6 . . . . . . . . . . . . . Recycling Unit Hacks 9 | . 1 . . . . . . . . . . . . . . . . 1 . 6 . . . . 1 . . . . . . . . Retrieve Components 9 | . 1 . . . . . . . . . . . . . . . . 1 . 6 . . . . 1 . . . . . . . . Scanalyzer 13 | . . . . . . . . . . . . . . . . . . . . 13 . . . . . . . . . . . . . Insert Component 7 | . . . . . . . . . . . . . . . . . . . . 7 . . . . . . . . . . . . . Analyze 6 | . . . . . . . . . . . . . . . . . . . . 6 . . . . . . . . . . . . . Garrison Access Hacks 9 | . . . . . . . . . . . . . 1 . . . . 2 . 3 . . . . 2 . . . . 1 . . . Seal Access 9 | . . . . . . . . . . . . . 1 . . . . 2 . 3 . . . . 2 . . . . 1 . . . Unauthorized Hacks 76 | . 1 . 2 . . . 1 1 . . . . 4 . . . . 10 . 39 . . . . 18 . . . . . . . . Terminals 48 | . . . 2 . . . 1 1 . . . . 1 . . . . 7 . 24 . . . . 12 . . . . . . . . Track 11 | . . . . . . . . . . . . . . . . . . 1 . 7 . . . . 3 . . . . . . . . Assimilate 8 | . . . . . . . . . . . . . . . . . . 1 . 5 . . . . 2 . . . . . . . . Botnet 25 | . . . 1 . . . 1 1 . . . . 1 . . . . 4 . 11 . . . . 6 . . . . . . . . Operators 4 | . . . 1 . . . . . . . . . . . . . . 1 . 1 . . . . 1 . . . . . . . . Fabricators 6 | . . . . . . . . . . . . . 1 . . . . . . 2 . . . . 3 . . . . . . . . Prioritize 5 | . . . . . . . . . . . . . . . . . . . . 2 . . . . 3 . . . . . . . . Liberate 1 | . . . . . . . . . . . . . 1 . . . . . . . . . . . . . . . . . . . . Repair Stations . | . . . . . . . . . . . . . . . . . . . . . . . . . . . . . . . . . . Recycling Units 22 | . 1 . . . . . . . . . . . 2 . . . . 3 . 13 . . . . 3 . . . . . . . . Reject 9 | . . . . . . . . . . . . . 1 . . . . 1 . 6 . . . . 1 . . . . . . . . Recyclers 2 | . . . . . . . . . . . . . . . . . . . . 1 . . . . 1 . . . . . . . . Mask 10 | . . . . . . . . . . . . . 1 . . . . 2 . 6 . . . . 1 . . . . . . . . Tunnel 1 | . 1 . . . . . . . . . . . . . . . . . . . . . . . . . . . . . . . . Scanalyzers . | . . . . . . . . . . . . . . . . . . . . . . . . . . . . . . . . . . Garrison Access . | . . . . . . . . . . . . . . . . . . . . . . . . . . . . . . . . . . Data Cores Recovered 2 | . . . 1 . . . . . . . . . . . . . . . . . . . . . 1 . . . . . . . . Used . | . . . . . . . . . . . . . . . . . . . . . . . . . . . . . . . . . . Hacking Detections 87 | . 8 1 8 1 . . 1 3 . . . . 14 . . . . 9 . 23 . . . . 13 . . . . 2 . 1 3 Full Trace Events 21 | . . . . . . . . 1 . . . . 6 . . . . . . 6 . . . . 5 . . . . . . 1 2 Feedback Events . | . . . . . . . . . . . . . . . . . . . . . . . . . . . . . . . . . . Feedback Blocked . | . . . . . . . . . . . . . . . . . . . . . . . . . . . . . . . . . . Robot Schematics Acquired 7 | . . . . . . . . . . . 5 . . . . 2 . . . . . . . . . . . . . . . . . Robots Built . | . . . . . . . . . . . . . . . . . . . . . . . . . . . . . . . . . . Authchips . | . . . . . . . . . . . . . . . . . . . . . . . . . . . . . . . . . . Time . | . . . . . . . . . . . . . . . . . . . . . . . . . . . . . . . . . . Total Robot Build Rating . | . . . . . . . . . . . . . . . . . . . . . . . . . . . . . . . . . . Part Schematics Acquired 43 | . 2 . . . . . . . . . 10 . 3 . . 15 . 1 . 6 . . 4 . 2 . . . . . . . . Parts Built 14 | . . . . . . . . . . . . . 1 . . . . . . 7 . . . . 6 . . . . . . . . Authchips . | . . . . . . . . . . . . . . . . . . . . . . . . . . . . . . . . . . Time 999 | . . . . . . . . . . . . . 47 . . . . . . 623 . . . . 329 . . . . . . . . Total Part Build Rating 85 | . . . . . . . . . . . . . 5 . . . . . . 47 . . . . 33 . . . . . . . . Parts Repaired 9 | . . . 1 . . . . . . . . . 2 . . . . . . 6 . . . . . . . . . . . . . Time 460 | . . . 32 . . . . . . . . . 99 . . . . . . 329 . . . . . . . . . . . . . Parts Recycled . | . . . . . . . . . . . . . . . . . . . . . . . . . . . . . . . . . . Recycled Matter . | . . . . . . . . . . . . . . . . . . . . . . . . . . . . . . . . . . Retrieved Matter . | . . . . . . . . . . . . . . . . . . . . . . . . . . . . . . . . . . Retrieved Components 21 | . 1 . . . . . . . . . . . . . . . . . . 20 . . . . . . . . . . . . . Parts Scanalyzed 2 | . . . . . . . . . . . . . . . . . . . . 2 . . . . . . . . . . . . . Part Schematics Acquired 2 | . . . . . . . . . . . . . . . . . . . . 2 . . . . . . . . . . . . . Parts Damaged 2 | . . . . . . . . . . . . . . . . . . . . 2 . . . . . . . . . . . . . Bothacking | -11 -10 -10 -9 -9 -9 -8 -8 -7 -7 -7 -7 -6 -6 -6 -6 -6 -5 -5 -5 -5 -5 -5 -5 -4 -4 -4 -4 -4 -3 -3 -3 -2 -1 ------------ Run | Jun Mat Min Mat Min Exi Min Mat Fac Low Low Dat Pro Fac Low Low Zio Pro Fac Was Fac Upp Upp Zhi Pro Fac Upp Upp War Pro Res Tes Res Acc Used RIF Installer . | . . . . . . . . . . . . . . . . . . . . . . . . . . . . . . . . . . Robots Hacked 2 | . . . . 1 . . . . . . . . 1 . . . . . . . . . . . . . . . . . . . . Non-combat 1 | . . . . . . . . . . . . . 1 . . . . . . . . . . . . . . . . . . . . Combat 1 | . . . . 1 . . . . . . . . . . . . . . . . . . . . . . . . . . . . . Robot Hacks Applied 2 | . . . . 1 . . . . . . . . 1 . . . . . . . . . . . . . . . . . . . . parse_system 2 | . . . . 1 . . . . . . . . 1 . . . . . . . . . . . . . . . . . . . . Relay Couplers Released 5 | . . . . . . . . . . . . . . . . . . . . . . . . . . . . . . . . 5 . Machine Destruction 1 | . . . . . . . . . . . . . . . . . . . . . . . . . . . . . . . . 1 . Programmers 4 | . . . . . . . . . . . . . . . . . . . . . . . . . . . . . . . . 4 . Fabnet Peak Effective % . | . . . . . . . . . . . . . . . . . . . . . . . . . . . . . . . . . . Robots Rewired 7 | . . . . . . . . . 1 . . . . . . . . . . . . . . . . . . 5 . . 1 . . Allies Hacked . | . . . . . . . . . . . . . . . . . . . . . . . . . . . . . . . . . . Hacks Repelled . | . . . . . . . . . . . . . . . . . . . . . . . . . . . . . . . . . . Allies | -11 -10 -10 -9 -9 -9 -8 -8 -7 -7 -7 -7 -6 -6 -6 -6 -6 -5 -5 -5 -5 -5 -5 -5 -4 -4 -4 -4 -4 -3 -3 -3 -2 -1 -------- Run | Jun Mat Min Mat Min Exi Min Mat Fac Low Low Dat Pro Fac Low Low Zio Pro Fac Was Fac Upp Upp Zhi Pro Fac Upp Upp War Pro Res Tes Res Acc Total Allies 21 | . . 3 . . . . . . 1 . . 1 3 . . . . . . 4 . . . . . . . 5 . . 1 . 3 Largest Group 5 | . . 2 1 . . . . . 1 . . 1 3 . . . . . . 4 . . . . . . . 5 . . 1 1 3 Highest-Rated Group 374 | . . 45 31 . . . . . 32 . . 96 90 . . . . . . 98 . . . . . . . 284 . . 90 90 374 Highest-Rated Ally 131 | . . 31 31 . . . . . 32 . . 96 30 . . . . . . 31 . . . . . . . 65 . . 90 90 131 Total Orders 4 | . . . . . . . . . . . . . . . . . . . . 1 . . . . . . . 3 . . . . . STAY 3 | . . . . . . . . . . . . . . . . . . . . 1 . . . . . . . 2 . . . . . FOLLOW 1 | . . . . . . . . . . . . . . . . . . . . . . . . . . . . 1 . . . . . Ally Attacks 197 | . . 3 4 . . . . . 1 . . 10 30 . . . . . . 11 . . . . . . . 65 . . 4 51 18 Total Damage 6580 | . . 43 62 . . . . . 40 . . 350 758 . . . . . . 169 . . . . . . . 2094 . . 522 1743 799 Kills 37 | . . 1 2 . . . . . . . . . 6 . . . . . . 1 . . . . . . . 12 . . 2 8 5 Allies Corrupted . | . . . . . . . . . . . . . . . . . . . . . . . . . . . . . . . . . . Allies Melted 1 | . . . . . . . . . . . . . . . . . . . . . . . . . . . . . . . . 1 . Intel | -11 -10 -10 -9 -9 -9 -8 -8 -7 -7 -7 -7 -6 -6 -6 -6 -6 -5 -5 -5 -5 -5 -5 -5 -4 -4 -4 -4 -4 -3 -3 -3 -2 -1 ------- Run | Jun Mat Min Mat Min Exi Min Mat Fac Low Low Dat Pro Fac Low Low Zio Pro Fac Was Fac Upp Upp Zhi Pro Fac Upp Upp War Pro Res Tes Res Acc Robot Analysis Total 23 | . 2 . 3 1 . . . . . . . . . . . . . . . 1 . . 4 . 12 . . . . . . . . Derelict Logs Recovered 19 | . . 2 . 2 . . . . 1 . . 2 . 1 . 1 2 . . . 1 1 . 3 . . 3 . . . . . . Drone Launches . | . . . . . . . . . . . . . . . . . . . . . . . . . . . . . . . . . . Drone Recoveries . | . . . . . . . . . . . . . . . . . . . . . . . . . . . . . . . . . . Exploration | -11 -10 -10 -9 -9 -9 -8 -8 -7 -7 -7 -7 -6 -6 -6 -6 -6 -5 -5 -5 -5 -5 -5 -5 -4 -4 -4 -4 -4 -3 -3 -3 -2 -1 ------------- Run | Jun Mat Min Mat Min Exi Min Mat Fac Low Low Dat Pro Fac Low Low Zio Pro Fac Was Fac Upp Upp Zhi Pro Fac Upp Upp War Pro Res Tes Res Acc Turns Passed 61795 | 103 932 1790 3760 1209 1029 2256 1523 1461 1336 2078 243 1647 5043 1612 665 2091 713 1848 132 4433 2689 2652 327 1308 3750 1544 1336 4893 1134 420 2300 3233 305 Spaces Moved 36255 | 38 503 643 1662 648 429 882 521 592 529 793 100 763 2076 937 384 1287 396 1887 501 8275 1001 1015 177 679 4043 724 514 1340 625 183 597 1356 155 Core . | . . . . . . . . . . . . . . . . . . . . . . . . . . . . . . . . . . Treads 19258 | . . 266 1354 648 429 882 369 592 529 793 100 91 1656 229 384 1287 396 336 . 200 1001 1015 177 679 440 724 514 1340 625 183 597 1267 155 Legs 675 | 38 503 45 . . . . . . . . . . . . . . . . . . . . . . . . . . . . . 89 . Wheels 2664 | . . 332 308 . . . 152 . . . . 672 420 708 . . . 72 . . . . . . . . . . . . . . . Hover . | . . . . . . . . . . . . . . . . . . . . . . . . . . . . . . . . . . Flight 13658 | . . . . . . . . . . . . . . . . . . 1479 501 8075 . . . . 3603 . . . . . . . . Fastest Speed 24 | 120 120 155 120 160 160 160 160 159 241 161 241 190 145 145 161 161 161 24 24 24 166 166 166 166 29 173 259 173 173 173 173 120 171 Average Speed 134 | 120 139 197 178 176 238 239 216 222 241 240 241 200 187 149 161 161 161 64 24 30 247 234 166 166 49 189 259 217 173 194 236 193 171 Slowest Speed 560 | 120 260 260 320 240 240 240 242 241 241 241 241 321 242 162 162 161 162 245 24 249 249 249 166 166 259 270 259 259 173 259 259 560 171 Overloaded Moves . | . . . . . . . . . . . . . . . . . . . . . . . . . . . . . . . . . . Propulsion Burnouts . | . . . . . . . . . . . . . . . . . . . . . . . . . . . . . . . . . . Robots Hopped 67 | . . . . . . . . . . . . . . . . . . 26 2 30 . . . . 9 . . . . . . . . Cave-ins Triggered 2 | . . . . . . . . . . . . . . . . . . . . . . . . . 1 . . . . . . 1 . Teleports 1 | . . . . . . . . . . . . . . . . . . . . . . . . . 1 . . . . . . . . Exploration Rate (%) 68 | 4 94 72 95 90 89 97 41 18 72 75 71 81 41 88 58 85 64 41 96 87 96 97 60 85 58 83 70 98 85 6 94 47 6 Regions Visited 33 Branch Regions 21 Pre-discovered Areas 12 | . 1 1 . 1 1 . . . 1 . 1 . . . . 2 . . . . 1 . 3 . . . . . . . . . . Known Exits Taken 8 | . . . 1 . . . . . . . . . 1 . . 1 . . . 1 . . . 1 1 . . . . 1 1 . . Unknown Exits Taken 23 | 1 1 1 . 1 1 1 1 1 1 1 1 1 . 1 1 . 1 . . . 1 1 1 . . 1 1 1 1 . . 1 . Scrap Searched 39 | . . 1 . 2 . 1 . . 3 4 . 3 . 2 2 3 1 . . . 2 5 . 1 . 2 3 . 4 . . . . Spaces Dug 798 | . . . 8 . . 40 22 1 . . . 19 44 . . . 27 56 . 211 . 20 . 56 97 2 . 69 . 10 13 83 20 Terrain Destroyed 4263 | . . 23 109 10 . 113 100 69 . 4 . 36 316 32 3 . 51 170 . 248 72 79 . 165 172 52 . 1167 9 10 184 1019 50 Melee 249 | . . . . . . . . 1 . . . . 1 . . . . 29 . 146 . . . . 72 . . . . . . . . Projectile 422 | . . 23 20 . . 4 10 . . 4 . 2 33 2 3 . . 50 . 43 . 10 . 17 71 6 . 52 9 10 19 23 11 AOE 3590 | . . . 89 10 . 109 90 68 . . . 34 282 30 . . 51 91 . 59 72 69 . 148 29 46 . 1115 . . 165 994 39 Terrain Rammed . | . . . . . . . . . . . . . . . . . . . . . . . . . . . . . . . . . . Walls Destroyed . | . . . . . . . . . . . . . . . . . . . . . . . . . . . . . . . . . . Machines Disabled . | . . . . . . . . . . . . . . . . . . . . . . . . . . . . . . . . . . Actions | -11 -10 -10 -9 -9 -9 -8 -8 -7 -7 -7 -7 -6 -6 -6 -6 -6 -5 -5 -5 -5 -5 -5 -5 -4 -4 -4 -4 -4 -3 -3 -3 -2 -1 --------- Run | Jun Mat Min Mat Min Exi Min Mat Fac Low Low Dat Pro Fac Low Low Zio Pro Fac Was Fac Upp Upp Zhi Pro Fac Upp Upp War Pro Res Tes Res Acc Total 46743 | 63 628 1083 2270 680 436 948 779 692 568 889 103 834 3026 1097 407 1307 447 2328 512 9957 1162 1236 200 793 5596 875 517 3104 667 240 1363 1759 177 Wait 6604 | 6 39 358 273 3 . 7 115 35 15 38 . 16 569 106 3 . 23 249 . 1198 126 184 . 45 1130 107 . 1321 21 28 553 35 1 Move 36093 | 37 502 642 1661 647 428 881 520 591 528 792 99 762 2075 936 383 1286 395 1839 496 8216 1000 1014 176 678 4023 723 513 1339 624 182 596 1355 154 Hop 61 | . . . . . . . . . . . . . . . . . . 22 2 28 . . . . 9 . . . . . . . . Pick Up 408 | . 6 21 40 1 1 3 12 6 . 4 . 2 24 1 . 5 . 7 2 103 . 2 2 5 62 3 . 34 2 7 17 35 1 Fast Attach 236 | 1 6 . 12 . 2 . 6 2 2 4 2 3 25 1 2 3 6 14 4 22 . . 6 1 31 5 1 15 1 . 13 46 . Attach 140 | . . 7 6 . . . 4 2 . 5 . 2 6 . . . . . . 12 . 1 2 2 25 . . 16 1 4 10 34 1 Detach 57 | . 1 . 2 . . . 1 . 1 . . . 3 . . . . 1 1 11 . . 1 . 19 . . 2 1 . 8 5 . Swap 439 | . 3 1 29 6 1 6 22 14 7 10 . 17 43 12 7 3 5 28 . 25 8 6 . 9 22 6 . 84 3 4 19 36 3 Drop 504 | . 8 4 56 2 4 3 20 11 3 1 2 6 42 3 1 9 3 15 7 96 . 1 7 5 63 7 1 46 1 5 32 40 . Fire 1505 | 19 63 49 113 18 . 34 77 29 10 35 . 21 124 29 10 . 8 60 . 57 28 28 . 48 90 23 . 215 13 10 106 172 16 Melee 350 | . . . . 1 . . . 2 2 . . . 2 . . 1 7 52 . 170 . . 6 . 106 1 . . . . . . . Ram 1 | . . . . . . . 1 . . . . . . . . . . . . . . . . . . . . . . . . . . Kick . | . . . . . . . . . . . . . . . . . . . . . . . . . . . . . . . . . . Crush 28 | . . 1 1 2 . 14 1 . . . . . 4 . . . . . . 1 . . . . . . 2 . . . . 1 1 Escape Stasis 37 | . . . . . . . . . . . . . . . . . . 18 . 18 . . . . 1 . . . . . . . . Rewire 41 | . . . . . . . . . . . . . . . . . . . . . . . . . . . . 32 . . 9 . . Trap 239 | . . . 77 . . . . . . . . 5 109 9 1 . . 23 . . . . . . 15 . . . . . . . . Miscellaneous . | . . . . . . . . . . . . . . . . . . . . . . . . . . . . . . . . . . Route ------- -11/Junkyard -10/Materials (discovered 4 exits: *Mat x3 / *Min) -10/Mines (discovered 2 exits: *Mat x2) -9/Materials (discovered 5 exits: *Mat x3 / *Min x2) -9/Mines (discovered 2 exits: *Mat / *Exi) -9/Exiles -8/Mines (discovered 2 exits: *Mat x2) -8/Materials -7/Factory -7/Lower Caves -7/Lower Caves (discovered 2 exits: *Fac / *Dat) -7/Data Miner -6/Proximity Caves -6/Factory (discovered 2 exits: *Low x2) -6/Lower Caves -6/Lower Caves (discovered 2 exits: *Fac / [*Zio]) -6/Zion -5/Proximity Caves -5/Factory (discovered 5 exits: *Fac / *Upp x2 / *Ext x2) -5/Waste -5/Factory (discovered 8 exits: *Fac x4 / *Upp x2 / *Ext x2) -5/Upper Caves -5/Upper Caves (discovered 2 exits: *Fac / *Zhi) -5/Zhirov -4/Proximity Caves -4/Factory (discovered 6 exits: *Res x3 / *Upp x2 / Arm) -4/Upper Caves -4/Upper Caves (discovered 2 exits: *Res / *War) -4/Warlord -3/Proximity Caves -3/Research (discovered 5 exits: *Res x3 / *Tes x2) -3/Testing -2/Research (discovered 2 exits: *Acc / [*Qua]) -1/Access (discovered 2 exits: *Sur / Com) To Epsilon Eridani History --------- Turn | Location | Event 1 | -11/Junkyard | Discovered new exit (range 3) 104 | -11/Junkyard | Entered Materials 315 | -10/Materials | Build established: Mutant 401 | -10/Materials | Discovered new exit (range 13) 511 | -10/Materials | Discovered new exit (range 14) 738 | -10/Materials | Discovered new exit (range 16) 875 | -10/Materials | Discovered new exit (range 15) 1036 | -10/Materials | Entered Mines 1086 | -10/Mines | Learned location of Zion (-6) 1113 | -10/Mines | Assembled infested the area 1118 | -10/Mines | Assisted by a Guerilla fighting off Assembled 1165 | -10/Mines | Core integrity fell below 50% 1229 | -10/Mines | Lost 4 parts (1p2n1u) 1690 | -10/Mines | Found a hidden stash of uninstalled traps 1855 | -10/Mines | Core integrity fell below 20% 1891 | -10/Mines | Discovered new exit (range 12) 2129 | -10/Mines | Discovered new exit (range 6) 2588 | -10/Mines | Build established: Scavenger-Mutant 2617 | -10/Mines | Received a Mining Laser from a helpful Derelict 2652 | -10/Mines | Learned Materials security intel 2826 | -10/Mines | Entered Materials 2826 | -9/Materials | Accompanied by 1 ally 2826 | -9/Materials | Evolved 2 slots: Propulsion x1, Utility x1 2827 | -9/Materials | Discovered new exit (range 9) 3119 | -9/Materials | Central database locked down 3138 | -9/Materials | Identified exit to Mines 3163 | -9/Materials | Discovered new exit (range 12) 3622 | -9/Materials | Build established: Mutant 3750 | -9/Materials | Destroyed 10 combat bots 3891 | -9/Materials | Repaired Cooling System 4426 | -9/Materials | First assault squad dispatched 4990 | -9/Materials | Build established: Scavenger-Mutant 5041 | -9/Materials | Discovered new exit (range 16) 5831 | -9/Materials | Discovered new exit (range 16) 6155 | -9/Materials | Sterilization system engaged 6155 | -9/Materials | Non-combat units ordered to evacuate 6255 | -9/Materials | Combat units ordered to evacuate 6455 | -9/Materials | Ambient heat levels rising (+10) 6586 | -9/Materials | Entered Mines 6632 | -9/Mines | Met a Derelict bent on vengeance 6782 | -9/Mines | YI-UF0 nonchalantly dropped a Grenade Launcher on the ground 6803 | -9/Mines | Destroyed YI-UF0 6807 | -9/Mines | Found Corrupted YI-UF0's Bottomless Matter Pit 7113 | -9/Mines | A weapon hastily lodged in a ceiling crevice suddenly fell to the ground 7217 | -9/Mines | Learned Materials terminal intel 7227 | -9/Mines | Discovered new exit (range 14) 7403 | -9/Mines | Deemed a non-threat by the Exiles lab entrance 7403 | -9/Mines | Discovered new exit (range 5) 7795 | -9/Mines | Entered Exiles 7860 | -9/Exiles | Met 8R-AWN 7894 | -9/Exiles | Met EX-HEX 7959 | -9/Exiles | Met EX-BIN 7990 | -9/Exiles | Aligned with FarCom system 7992 | -9/Exiles | Given EX-Vault access code 8081 | -9/Exiles | Opened EX-Vault 8103 | -9/Exiles | Found Skeleton Box 8112 | -9/Exiles | Found Longsword +1 8167 | -9/Exiles | Warned to stay clear of 0b10 Research branches 8328 | -9/Exiles | Met EX-DEC 8365 | -9/Exiles | Visited The Gauntlet 8800 | -9/Exiles | Discovered new exit (range 11) 8824 | -9/Exiles | Left Exiles lab with Longsword +1 8824 | -9/Exiles | Entered Mines 8976 | -8/Mines | Discovered new exit (range 15) 9256 | -8/Mines | Discovered new exit (range 5) 10349 | -8/Mines | Core integrity fell below 50% 11080 | -8/Mines | Entered Materials 11080 | -8/Materials | Evolved 2 slots: Propulsion x1, Utility x1 11081 | -8/Materials | Loaded intel: 12 terminal locations 11511 | -8/Materials | Garrison activated, responded to threat 12264 | -8/Materials | Discovered new exit (range 11) 12603 | -8/Materials | Entered Factory 12603 | -7/Factory | Evolved 2 slots: Propulsion x1, Utility x1 13173 | -7/Factory | Garrison activated, responded to threat 13914 | -7/Factory | Discovered new exit (range 6) 14048 | -7/Factory | Build established: Mutant 14064 | -7/Factory | Entered Lower Caves 14251 | -7/Lower Caves | Encountered a Warlord checkpoint 14803 | -7/Lower Caves | Attracted the attention of an 0b10 checkpoint 15321 | -7/Lower Caves | Discovered new exit (range 13) 15400 | -7/Lower Caves | Entered another Lower Caves area 15661 | -7/Lower Caves | Build established: Scavenger-Mutant 15682 | -7/Lower Caves | Discovered new exit (range 11) 16248 | -7/Lower Caves | Attracted the attention of an 0b10 outpost 16734 | -7/Lower Caves | Spotted B-75 Beast 16789 | -7/Lower Caves | Destroyed B-75 Beast 16817 | -7/Lower Caves | Lost 5 parts (3n1u1w) 17057 | -7/Lower Caves | Build established: Mutant 17194 | -7/Lower Caves | Discovered new exit (range 5) 17478 | -7/Lower Caves | Entered Data Miner 17479 | -7/Data Miner | Discovered new exit (range 6) 17525 | -7/Data Miner | Met Data Miner 17586 | -7/Data Miner | Learned location of Section 7 (-2) 17586 | -7/Data Miner | Acquired the access code to Warlord's prototype stash 17627 | -7/Data Miner | Received God Mode back door access code from Data Miner 17721 | -7/Data Miner | Entered Proximity Caves 17928 | -6/Proximity Caves | Escorted by Enhanced Grunt 18075 | -6/Proximity Caves | Spotted B-75 Beast 18303 | -6/Proximity Caves | Learned 4 Factory zone layouts 18871 | -6/Proximity Caves | Learned Factory terminal intel 18902 | -6/Proximity Caves | Build established: Trapper-Mutant 18911 | -6/Proximity Caves | Discovered new exit (range 15) 18965 | -6/Proximity Caves | Attracted the attention of an 0b10 checkpoint 19363 | -6/Proximity Caves | System corruption reached 10% 19368 | -6/Proximity Caves | Entered Factory 19368 | -6/Factory | Evolved 2 slots: Propulsion x1, Utility x1 19370 | -6/Factory | Loaded intel: 26 terminal locations 20561 | -6/Factory | Build established: Scavenger-Mutant 21709 | -6/Factory | Build established: Trapper-Mutant 21809 | -6/Factory | Identified exit to Lower Caves 22116 | -6/Factory | Incoming investigation squad redirected 22369 | -6/Factory | Spotted B-75 Beast 22868 | -6/Factory | First assault squad dispatched 22886 | -6/Factory | Incoming assault squad redirected 23253 | -6/Factory | Fabricated Lrn. Missile Launcher? 23533 | -6/Factory | Incoming investigation squad redirected 23618 | -6/Factory | Build established: Trapper-Skirmisher 24080 | -6/Factory | Repaired Broken Imp. Shield Generator 24098 | -6/Factory | Incoming investigation squad redirected 24119 | -6/Factory | Repaired Arm. Treads 24291 | -6/Factory | Incoming assault squad redirected 24411 | -6/Factory | Entered Lower Caves 24679 | -6/Lower Caves | Build established: Trapper-Mutant 24885 | -6/Lower Caves | Spotted B-75 Beast 25600 | -6/Lower Caves | Destroyed B-75 Beast 25987 | -6/Lower Caves | Discovered new exit (range 14) 26023 | -6/Lower Caves | Entered another Lower Caves area 26046 | -6/Lower Caves | Discovered new exit (range 3) 26507 | -6/Lower Caves | Attracted the attention of an 0b10 checkpoint 26662 | -6/Lower Caves | Discovered new exit (range 15) 26688 | -6/Lower Caves | Entered Zion 26756 | -6/Zion | System corruption cleaned by Quarantine Array 27288 | -6/Zion | Given the Hacking Drone Bay 27330 | -6/Zion | Received a hallucinogenic algorithm 27435 | -6/Zion | Identified exit to Proximity Caves 27902 | -6/Zion | Learned location of Warlord (-4) 27957 | -6/Zion | Rebuked by Imprinter 28116 | -6/Zion | Given A8's code to call for help 28727 | -6/Zion | Found CR-A16's Pointy Stick 28779 | -6/Zion | Entered Proximity Caves 28794 | -5/Proximity Caves | Spotted B-75 Beast 28820 | -5/Proximity Caves | Revealed the true nature of CR-A16's Pointy Stick 28823 | -5/Proximity Caves | Destroyed B-75 Beast 28850 | -5/Proximity Caves | Lost 3 parts (3u) 29280 | -5/Proximity Caves | Learned Factory security intel 29367 | -5/Proximity Caves | Discovered new exit (range 5) 29492 | -5/Proximity Caves | Entered Factory 29492 | -5/Factory | Evolved 2 slots: Power x1, Utility x1 29493 | -5/Factory | Identified exit to Upper Caves 30198 | -5/Factory | Build established: Hacker-Mutant 30661 | -5/Factory | Discovered new exit (range 16) 30726 | -5/Factory | Identified exit to Extension 30928 | -5/Factory | Build established: Hacker-Sprinter 31085 | -5/Factory | Spotted B-75 Beast 31330 | -5/Factory | Discovered new exit (range 15) 31340 | -5/Factory | Sucked down chute 31340 | -5/Factory | Entered Waste 31340 | -5/Waste | The area was eerily silent 31345 | -5/Waste | Found Prototype Device 31345 | -5/Waste | Identified Exp. Force Field 31420 | -5/Waste | Discovered new exit (range 12) 31429 | -5/Waste | Found Prototype Hackware 31429 | -5/Waste | Identified Exp. Hacking Suite 31472 | -5/Waste | Entered Factory 31514 | -5/Factory | Discovered new exit (range 6) 31527 | -5/Factory | Repaired Broken Imp. Heavy Siege Treads? 31675 | -5/Factory | Incoming investigation squad redirected 31718 | -5/Factory | Fabricated Neutron Missile Launcher? 31728 | -5/Factory | Build established: Wizard-Sprinter 31794 | -5/Factory | Discovered new exit (range 10) 32207 | -5/Factory | Repaired Nuclear Pulse Array 32278 | -5/Factory | Identified exit to Factory 32357 | -5/Factory | Central database locked down 32429 | -5/Factory | Incoming assault squad redirected 32685 | -5/Factory | Fabricated Cargo Storage Unit (x1) 32780 | -5/Factory | Incoming investigation squad redirected 32983 | -5/Factory | Fabricated Exp. Force Field? 33162 | -5/Factory | Found Prototype Launcher 33204 | -5/Factory | Identified Tesla Bomb Launcher 33249 | -5/Factory | Repaired Hyp. Mass Driver 33772 | -5/Factory | Incoming investigation squad redirected 33873 | -5/Factory | Fabricated Imp. Heavy Siege Treads? 33899 | -5/Factory | Incoming investigation squad redirected 33976 | -5/Factory | Fabricated Neutron Missile Launcher? 34102 | -5/Factory | Incoming investigation squad redirected 34168 | -5/Factory | Fabricated Neutron Missile Launcher? 35012 | -5/Factory | Repaired Hyp. Gauss Cannon 35127 | -5/Factory | Repaired Hvy. Treads 35208 | -5/Factory | Repaired Cld. Cesium-ion Thruster? 35675 | -5/Factory | Build established: Hauler-Mutant 35905 | -5/Factory | Entered Upper Caves 36475 | -5/Upper Caves | Attracted the attention of an 0b10 checkpoint 37314 | -5/Upper Caves | Spotted B-75 Beast 38194 | -5/Upper Caves | Discovered new exit (range 2) 38594 | -5/Upper Caves | Entered another Upper Caves area 38926 | -5/Upper Caves | Discovered exit to Factory (range 9) 39366 | -5/Upper Caves | Spotted B-75 Beast 40431 | -5/Upper Caves | Attracted the attention of an 0b10 checkpoint 40506 | -5/Upper Caves | Learned Factory interactive machine intel 40640 | -5/Upper Caves | Discovered new exit (range 7) 41246 | -5/Upper Caves | Entered Zhirov 41247 | -5/Zhirov | Discovered new exit (range 3) 41277 | -5/Zhirov | Met Zhirov 41314 | -5/Zhirov | Learned location of Quarantine (-2) 41314 | -5/Zhirov | Learned location of Testing (-3) 41324 | -5/Zhirov | Zhirov requested help retrieving the SGEMP Prototype 41353 | -5/Zhirov | Found Alien Artifact 41353 | -5/Zhirov | Identified Integrated Reactor 41353 | -5/Zhirov | Installed Integrated Reactor, increased core energy generation (+10) 41376 | -5/Zhirov | Found Alien Artifact 41573 | -5/Zhirov | Entered Proximity Caves 41721 | -4/Proximity Caves | Learned Research terminal intel 42508 | -4/Proximity Caves | Attracted the attention of an 0b10 outpost 42585 | -4/Proximity Caves | Destroyed 12 combat bots 42639 | -4/Proximity Caves | Attracted the attention of an 0b10 checkpoint 42881 | -4/Proximity Caves | Entered Factory 42881 | -4/Factory | Evolved 2 slots: Utility x1, Weapon x1 42882 | -4/Factory | Identified exit to Armory 42883 | -4/Factory | Loaded intel: 52 interactive machine locations 43168 | -4/Factory | Identified exit to Upper Caves 43314 | -4/Factory | Discovered new exit (range 10) 43420 | -4/Factory | Spotted B-86 Titan 43441 | -4/Factory | Discovered new exit (range 14) 43697 | -4/Factory | Build established: Wizard-Sprinter 43703 | -4/Factory | Destroyed B-86 Titan 43779 | -4/Factory | Fabricated Lrn. Tractor Beam? 43781 | -4/Factory | Incoming investigation squad redirected 43844 | -4/Factory | Fabricated Prc. Matter Filter? 43847 | -4/Factory | Found Prototype Hackware 43863 | -4/Factory | Identified Exp. System Shield 43992 | -4/Factory | Fabricated Neutron Missile Launcher? 44309 | -4/Factory | Fabricated Adv. Powered Armor (x1) 44345 | -4/Factory | Discovered new exit (range 13) 44481 | -4/Factory | Fabricated Tri-rail Accelerator? 44568 | -4/Factory | Crushed by falling debris 45188 | -4/Factory | Build established: Hacker-Mutant 45601 | -4/Factory | Identified Transdimensional Reconstructor 45601 | -4/Factory | Warped through subspace 46030 | -4/Factory | Build established: Hauler-Mutant 46631 | -4/Factory | Entered Upper Caves 47503 | -4/Upper Caves | Found Alien Artifact 47503 | -4/Upper Caves | Identified Dimensional Node Initializer 47503 | -4/Upper Caves | Initialized slip node 47738 | -4/Upper Caves | Spotted B-86 Titan 47767 | -4/Upper Caves | Destroyed B-86 Titan 47855 | -4/Upper Caves | Discovered new exit (range 8) 48175 | -4/Upper Caves | Entered another Upper Caves area 48211 | -4/Upper Caves | Discovered new exit (range 5) 48260 | -4/Upper Caves | Spotted B-86 Titan 48493 | -4/Upper Caves | Learned 4 Research zone layouts 48550 | -4/Upper Caves | Learned location of 2 exits from Research 48711 | -4/Upper Caves | Learned location of 1 exit from Research 49454 | -4/Upper Caves | Discovered new exit (range 6) 49479 | -4/Upper Caves | Attracted the attention of an 0b10 checkpoint 49511 | -4/Upper Caves | Entered Warlord 49875 | -4/Warlord | Met Warlord 49900 | -4/Warlord | Warlord's base attacked by MAIN.C 49904 | -4/Warlord | Opened Warlord's prototype stash 49911 | -4/Warlord | Found Prototype Reactor 49911 | -4/Warlord | Identified Vortex Chain Reactor 49916 | -4/Warlord | Found Prototype Device 49916 | -4/Warlord | Identified Exp. Phase Shifter 50024 | -4/Warlord | Found Prototype Energy Cannon 50027 | -4/Warlord | Found Prototype Energy Cannon 50250 | -4/Warlord | Warlord forces counterattacked 50299 | -4/Warlord | Spotted Striker 50305 | -4/Warlord | Allies destroyed Striker 50333 | -4/Warlord | Spotted Striker 50429 | -4/Warlord | Spotted Striker 50443 | -4/Warlord | Spotted Executioner 50445 | -4/Warlord | Destroyed Executioner 50445 | -4/Warlord | Spotted Executioner 50447 | -4/Warlord | Destroyed Executioner 50467 | -4/Warlord | Destroyed Striker 50525 | -4/Warlord | Spotted Striker 50543 | -4/Warlord | Destroyed Striker 50564 | -4/Warlord | Destroyed 9 combat bots 50575 | -4/Warlord | Warlord base infiltrated, sounded retreat 50644 | -4/Warlord | Spotted Executioner 50667 | -4/Warlord | Found Prototype Launcher 50673 | -4/Warlord | Destroyed Executioner 50681 | -4/Warlord | Found Prototype Device 50709 | -4/Warlord | Identified Exp. Shock Absorption System 50839 | -4/Warlord | Spotted Executioner 50847 | -4/Warlord | Destroyed Executioner 50882 | -4/Warlord | Destroyed 8 combat bots 50910 | -4/Warlord | Spotted Executioner 50911 | -4/Warlord | Destroyed Executioner 50950 | -4/Warlord | Destroyed Striker 50950 | -4/Warlord | Spotted Striker 50952 | -4/Warlord | Destroyed Striker 50954 | -4/Warlord | Destroyed Striker 50957 | -4/Warlord | Spotted Executioner 50959 | -4/Warlord | Destroyed Executioner 50980 | -4/Warlord | Destroyed 22 combat bots 51044 | -4/Warlord | Destroyed Striker 51065 | -4/Warlord | Destroyed 9 combat bots 51130 | -4/Warlord | Destroyed Striker 51134 | -4/Warlord | Spotted Striker 51136 | -4/Warlord | Spotted Executioner 51154 | -4/Warlord | Destroyed 11 combat bots 51154 | -4/Warlord | Destroyed Executioner 51154 | -4/Warlord | Destroyed Striker 51273 | -4/Warlord | Destroyed 18 combat bots 51322 | -4/Warlord | Spotted B-90 Cyclops 51327 | -4/Warlord | Spotted Striker 51329 | -4/Warlord | Destroyed B-90 Cyclops 51338 | -4/Warlord | Destroyed Striker 51359 | -4/Warlord | Destroyed 11 combat bots 51441 | -4/Warlord | Destroyed 8 combat bots 51460 | -4/Warlord | Spotted Striker 51476 | -4/Warlord | Destroyed Striker 51496 | -4/Warlord | Spotted Executioner 51504 | -4/Warlord | Destroyed Executioner 51527 | -4/Warlord | Destroyed 24 combat bots 52217 | -4/Warlord | Spotted Executioner 52225 | -4/Warlord | Destroyed Executioner 52367 | -4/Warlord | Spotted Striker 52385 | -4/Warlord | Destroyed Striker 52488 | -4/Warlord | Found Prototype Special Weapon 52492 | -4/Warlord | Found Prototype Special Weapon 52496 | -4/Warlord | Found Prototype Special Weapon 52500 | -4/Warlord | Found Prototype Special Weapon 52504 | -4/Warlord | Found Prototype Special Weapon 53231 | -4/Warlord | Build established: Hauler-Tank 53274 | -4/Warlord | Discovered new exit (range 9) 53958 | -4/Warlord | Found Prototype Hackware 54322 | -4/Warlord | Identified Vortex Cannon 54371 | -4/Warlord | Identified Chain Missile Launcher 54404 | -4/Warlord | Entered Proximity Caves 55358 | -3/Proximity Caves | Discovered new exit (range 12) 55538 | -3/Proximity Caves | Entered Research 55538 | -3/Research | Evolved 2 slots: Utility x2 55539 | -3/Research | Identified exit to Research 55540 | -3/Research | Identified exit to Testing 55541 | -3/Research | Loaded intel: 22 terminal locations 55612 | -3/Research | Identified System Mapper 55826 | -3/Research | Discovered exit to Testing (range 12) 55958 | -3/Research | Entered Testing 55959 | -3/Testing | Maximum security lockdown engaged 56093 | -3/Testing | Spotted Executioner 56093 | -3/Testing | Spotted Executioner 56096 | -3/Testing | Scanned by Researcher 56096 | -3/Testing | Destroyed Executioner 56109 | -3/Testing | Destroyed Executioner 56145 | -3/Testing | Destroyed 24 combat bots 56203 | -3/Testing | Spotted Investigator 56205 | -3/Testing | Destroyed Investigator 56260 | -3/Testing | Destroyed 22 combat bots 56309 | -3/Testing | Build established: Hauler-Mutant 56354 | -3/Testing | Destroyed Striker 56377 | -3/Testing | Destroyed Striker 56385 | -3/Testing | Destroyed Striker 56410 | -3/Testing | Destroyed 31 combat bots 56421 | -3/Testing | Found Prototype Ballistic Gun 56440 | -3/Testing | Identified RU-N14's Throwing Claymores v3 56556 | -3/Testing | Destroyed Executioner 56560 | -3/Testing | Spotted Executioner 56560 | -3/Testing | Destroyed Executioner 56569 | -3/Testing | Destroyed Striker 56571 | -3/Testing | Destroyed Executioner 56574 | -3/Testing | Identified Hyp. Multirail 56578 | -3/Testing | Spotted Striker 56578 | -3/Testing | Destroyed Striker 56601 | -3/Testing | Destroyed 42 combat bots 56786 | -3/Testing | Spotted Executioner 56787 | -3/Testing | Sterilization system engaged 56787 | -3/Testing | Non-combat units ordered to evacuate 56788 | -3/Testing | Destroyed Executioner 56803 | -3/Testing | Spotted Striker 56805 | -3/Testing | Spotted Striker 56809 | -3/Testing | Destroyed Striker 56816 | -3/Testing | Destroyed Striker 56820 | -3/Testing | Destroyed Striker 56841 | -3/Testing | Destroyed 42 combat bots 56887 | -3/Testing | Combat units ordered to evacuate 57033 | -3/Testing | Spotted R1-TG0(L) 57033 | -3/Testing | Spotted VZ-XHA(L) 57033 | -3/Testing | Spotted DB-K2E(L) 57087 | -3/Testing | Ambient heat levels rising (+10) 57089 | -3/Testing | Rewired VZ-XHA(L) 57091 | -3/Testing | Allies destroyed DB-K2E(L) 57093 | -3/Testing | Allies destroyed R1-TG0(L) 57237 | -3/Testing | Ambient heat levels rising (+10) 57304 | -3/Testing | Discovered exit to Research (range 13) 57328 | -3/Testing | Found Prototype Energy Cannon 57328 | -3/Testing | Identified Disintegrator 57387 | -3/Testing | Ambient heat levels rising (+10) 57425 | -3/Testing | Build established: Hauler-Skirmisher 57464 | -3/Testing | Found Prototype Energy Cannon 57464 | -3/Testing | Identified Imp. Potential Cannon 57537 | -3/Testing | Ambient heat levels rising (+10) 57559 | -3/Testing | Found Prototype Ballistic Cannon 57649 | -3/Testing | Found Prototype Protection 57649 | -3/Testing | Identified Centrium Heavy Armor Plating 57687 | -3/Testing | Ambient heat levels rising (+10) 57777 | -3/Testing | Stole the SGEMP Prototype 57837 | -3/Testing | Ambient heat levels rising (+10) 57939 | -3/Testing | Build established: Hauler-Assassin 57987 | -3/Testing | Ambient heat levels rising (+10) 58137 | -3/Testing | Ambient heat levels rising (+10) 58217 | -3/Testing | Found Prototype Protection 58217 | -3/Testing | Identified SHELL Armor 58221 | -3/Testing | Found Prototype Protection 58221 | -3/Testing | Identified Med. Regenerative Plating 58228 | -3/Testing | Found Med. Regenerative Plating 58258 | -3/Testing | Entered Research 58258 | -2/Research | Accompanied by 1 ally 58258 | -2/Research | Warlord forces began assault on 0b10 58258 | -2/Research | Evolved 2 slots: Utility x1, Weapon x1 58304 | -2/Research | Found Unknown Device 58304 | -2/Research | Identified Quantum Capacitor 58368 | -2/Research | Research machine network offline 58405 | -2/Research | High security lockdown imminent 58485 | -2/Research | High security lockdown engaged 58512 | -2/Research | Build established: Hauler-Mutant 58553 | -2/Research | Borebot progress halted 58615 | -2/Research | Borebot progress halted 58688 | -2/Research | Borebot progress halted 58728 | -2/Research | Spotted Striker 58738 | -2/Research | Destroyed Striker 58771 | -2/Research | Destroyed 12 combat bots 58845 | -2/Research | Spotted Striker 58849 | -2/Research | Spotted Striker 58849 | -2/Research | Destroyed Striker 58851 | -2/Research | Spotted Striker 58852 | -2/Research | Spotted Striker 58863 | -2/Research | Spotted Striker 58866 | -2/Research | Destroyed Striker 58874 | -2/Research | Destroyed Striker 58879 | -2/Research | Destroyed Striker 58902 | -2/Research | Destroyed 19 combat bots 59013 | -2/Research | Found Unknown Device 59014 | -2/Research | Spotted Striker 59022 | -2/Research | Destroyed Striker 59026 | -2/Research | Spotted Striker 59046 | -2/Research | Destroyed Striker 59056 | -2/Research | Spotted Striker 59073 | -2/Research | Spotted Executioner 59079 | -2/Research | Destroyed Striker 59086 | -2/Research | Destroyed Executioner 59110 | -2/Research | Spotted Striker 59121 | -2/Research | Destroyed Striker 59136 | -2/Research | Identified Antimissile System 59151 | -2/Research | Destroyed 37 combat bots 59156 | -2/Research | Lost 9 parts (1p1n7u) 59217 | -2/Research | Spotted Striker 59229 | -2/Research | Destroyed Striker 59254 | -2/Research | Spotted Striker 59254 | -2/Research | Spotted Striker 59254 | -2/Research | Spotted Striker 59256 | -2/Research | Spotted Striker 59256 | -2/Research | Spotted Striker 59261 | -2/Research | Destroyed Striker 59263 | -2/Research | Destroyed Striker 59263 | -2/Research | Destroyed Striker 59267 | -2/Research | Destroyed Striker 59288 | -2/Research | Destroyed 16 combat bots 59297 | -2/Research | Lost 9 parts (1p3n2u3w) 59339 | -2/Research | Spotted Striker 59351 | -2/Research | Spotted Striker 59357 | -2/Research | System corruption reached 10% 59359 | -2/Research | Spotted Striker 59359 | -2/Research | Destroyed Executioner 59362 | -2/Research | Destroyed Striker 59363 | -2/Research | Spotted Executioner 59365 | -2/Research | Destroyed Striker 59378 | -2/Research | Destroyed Executioner 59383 | -2/Research | Spotted Executioner 59401 | -2/Research | Destroyed 15 combat bots 59411 | -2/Research | Lost 6 parts (1n4u1w) 59569 | -2/Research | Spotted Executioner 59571 | -2/Research | Spotted Striker 59576 | -2/Research | Destroyed Executioner 59581 | -2/Research | P-80 Master assimilated allied ZX-QQX(h) 59591 | -2/Research | Destroyed Striker 59617 | -2/Research | Warlord destroyed during the assault 59617 | -2/Research | Sterilization system engaged 59617 | -2/Research | Non-combat units ordered to evacuate 59635 | -2/Research | Lost 3 parts (2u1w) 59642 | -2/Research | Destroyed 16 combat bots 59645 | -2/Research | System corruption reached 30% 59717 | -2/Research | Combat units ordered to evacuate 59723 | -2/Research | Spotted Executioner 59724 | -2/Research | Spotted Striker 59729 | -2/Research | Destroyed Executioner 59733 | -2/Research | Spotted Striker 59738 | -2/Research | Crushed by falling debris 59746 | -2/Research | Destroyed Striker 59775 | -2/Research | Identified Perforator 59805 | -2/Research | Lost 14 parts (7n2u5w) 59917 | -2/Research | Ambient heat levels rising (+10) 60020 | -2/Research | Build established: Scavenger-Mutant 60067 | -2/Research | Ambient heat levels rising (+10) 60217 | -2/Research | Ambient heat levels rising (+10) 60262 | -2/Research | Discovered new exit (range 5) 60328 | -2/Research | Found Prototype Launcher 60328 | -2/Research | Identified Point Singularity Launcher 60332 | -2/Research | Found Point Singularity Launcher 60334 | -2/Research | Found Point Singularity Launcher 60338 | -2/Research | Found Antimissile System 60367 | -2/Research | Ambient heat levels rising (+10) 60416 | -2/Research | Build established: Scavenger-Tank 60517 | -2/Research | Ambient heat levels rising (+10) 60667 | -2/Research | Ambient heat levels rising (+10) 60817 | -2/Research | Ambient heat levels rising (+10) 60967 | -2/Research | Ambient heat levels rising (+10) 61117 | -2/Research | Ambient heat levels rising (+10) 61226 | -2/Research | Discovered new exit (range 4) 61267 | -2/Research | Ambient heat levels rising (+10) 61417 | -2/Research | Ambient heat levels rising (+10) 61491 | -2/Research | Entered Access 61491 | -1/Access | Evolved 2 slots: Propulsion x2 61492 | -1/Access | Loaded intel: 108 machine locations 61492 | -1/Access | Loaded intel: 80 trap records 61492 | -1/Access | Identified exit to Surface 61492 | -1/Access | Discovered exit to Surface (range 112) 61492 | -1/Access | Identified exit to Command 61492 | -1/Access | Discovered exit to Command (range 192) 61492 | -1/Access | Delivered the SGEMP Prototype to Zhirov 61492 | -1/Access | Zhirov transferred Access data 61709 | -1/Access | Build established: Scavenger-Mutant 61716 | -1/Access | Incoming investigation squad redirected 61774 | -1/Access | First assault squad dispatched 61796 | *** | Escaped! Last Messages --------------- 61707_ Terminal unresponsive. 61716_ ALERT: Higher priority target reported, redirecting investigation. 61722_ Slammed into O-32 Director. 61722_ O-32 Director knocked back. 61741_ ALERT: Rogue bot located, Q-Series report to Access Zone 3I. 61743_ Slug penetrates Perun. 61748_ Connecting with Terminal... 61748_ ALERT: Suspicious activity at Terminal A001. Dispatching Investigation squad. 61751_ Slug penetrates Svarog. 61751_ Svarog suffers critical hit (Destroy). 61751_ Slug penetrates Perun. 61770_ The unstable cave ceiling collapses. 61774_ ALERT: Significant disruption in Zone 4E, multiple assault carriers dispatched. 61775_ ALERT: Security rotation in progress. 61782_ The unstable cave ceiling collapses. 61784_ Main Access Shell breached. Map ----- +----------------------------------------------------+ | # ############### # # # | | # ############### # # # | | # ############### # # # | | # # " # # # | | ######### # """ # # # | | ## # # """ # # ""T"" + | | ## # # " + # """"" # | | ## # ########## # # ########### | | # # ########## # # ########### | | # # ########## ########## ########### | | # + ####### ####### ########### | | # # ####### ####### ########### | | # # ####### #######g ########### | | # # ####### ####### ########### | | ## # ########## BB BB ####### ########### | | ## # ########## BB BB ####### ########### | | + # ########## ####### ########### | | ## # ##########""""""""""####### g########### | | ## # ##########""""""""""####### ####### | | ######### ##########""""""""""####### ####### | | ######### ##########""""""""""####### ####### | | ######### ########## ####### ####### | | ######### ########## """""" ####### ####### | | # ### " " ####### ####### " | | # ### " "" " ####### ####### "" | | ######## # ### "P"@1" ####### ####### "R | | ######## # ### " S " ## ### ####### "" | | ######## # ### """" " # # ## ####### "" | | """"" # # ### # ## ####### | | """"" # # ### ## ####### | | " F" # # ##"""""""""""" # # # ########### | | # # ###"" ## ########### | | # w# ###"" ## ## ########### | | / + [ ###"" # ## ########### | | # # ###T # ### ########### | | # # ###"" ####### ########### | | ######## ##########"" ####### ########### | | ####### #########"" ####### ########### | | ####### "T = | | ####### "" [ | | ####### ##########################+###########/ | | ################################# ## | | ################################# ## | | ################################# ## | | ################################# "" "" ## | | ################################# ""R"" ## | | ################################# """" ## | | ################################# ## | | ################################# ## | | ############################################ | +----------------------------------------------------+ Best States ------------- Heat Dissipation 140 Energy Generation 65 Energy Capacity 1125 Matter Stores 300 Matter Capacity 300 Sight Range 16 Terrain Scan Range 18 Terrain Scan Density 10 Cloak Strength 3 EM Shielding 3 Armor Coverage 2700 Resistance: KI 30 Resistance: TH 30 Resistance: EX 75 Power Shielding 66 Point Defense Rating 240 Weapon Cycling 20 Phase Shifting 20 Evasion (%) 75 Targeting Accuracy 20 Recoil Reduction 8 Matter Filtering 50 Kinecelleration 40 Offensive Hacking 56 Defensive Hacking 42 Authchip Count 1 Trap Extractor Capacity 6 Item Schematics ----------------- Huge Storage Unit | -10/Materials | Hacked Cargo Storage Unit | -10/Materials | Hacked Combat Drone Bay | -7/Data Miner | Free Lgt. Regenerative Plating | -7/Data Miner | Free Biomechanical Wings | -7/Data Miner | Free Gravity Neutralizer | -7/Data Miner | Free Imp. Lightning Gun | -7/Data Miner | Free Cmb. Gravmag System | -7/Data Miner | Free Adv. Trap Extractor | -7/Data Miner | Free Adv. Plasma Cannon | -7/Data Miner | Free Imp. Antigrav System | -7/Data Miner | Free Mass Driver | -7/Data Miner | Free Lrn. Missile Launcher | -6/Factory | Hacked Lrn. Tractor Beam | -6/Factory | Hacked Powered Armor | -6/Factory | Hacked Lyr. Medium Armor Plating | -6/Zion | Archive Point Defense System | -6/Zion | Archive Imp. Medium Treads | -6/Zion | Archive Imp. Thermal Shield | -6/Zion | Archive Adv. Signal Interpreter | -6/Zion | Archive Hyp. Coil Gun | -6/Zion | Archive Magnetic Acceleration Cannon | -6/Zion | Archive Phase Gun | -6/Zion | Archive Antimatter Reactor | -6/Zion | Archive Nuclear Pulse Thruster | -6/Zion | Archive Imp. Focal Shield | -6/Zion | Archive Power Amplifier | -6/Zion | Archive Hvy. Treads | -6/Zion | Archive Flexi-carbon Leg | -6/Zion | Archive Tiamat Missile Launcher | -6/Zion | Archive Hvy. Reactive Plating | -5/Factory | Hacked Exp. Force Field | -5/Factory | Scanalyzed Imp. Heavy Siege Treads | -5/Factory | Scanalyzed Neutron Missile Launcher | -5/Factory | Hacked Tri-rail Accelerator | -5/Factory | Hacked Imp. Weapon Cycler | -5/Factory | Hacked Com. HERF Cannon | -5/Factory | Hacked Assault Drone Bay | -5/Zhirov | Free Exp. Heat Sink | -5/Zhirov | Free Exp. Optical Array | -5/Zhirov | Free Imp. Arc Thrower | -5/Zhirov | Free Prc. Matter Filter | -4/Factory | Hacked Adv. Powered Armor | -4/Factory | Hacked Robot Schematics ------------------ G-50 Soldier | -7/Data Miner | Free H-55 Commando | -7/Data Miner | Free G-47 Trooper | -7/Data Miner | Free I-36 Angel | -7/Data Miner | Free B-48 Gladiator | -7/Data Miner | Free H-66 Slayer | -6/Zion | Archive R-06 Scavenger | -6/Zion | Archive Fabricated ------------ Lrn. Missile Launcher | x1 | -6/Factory Neutron Missile Launcher | x1 | -5/Factory Cargo Storage Unit | x1 | -5/Factory Exp. Force Field | x1 | -5/Factory Imp. Heavy Siege Treads | x2 | -5/Factory Neutron Missile Launcher | x1 | -5/Factory Neutron Missile Launcher | x1 | -5/Factory Lrn. Tractor Beam | x2 | -4/Factory Prc. Matter Filter | x1 | -4/Factory Neutron Missile Launcher | x1 | -4/Factory Adv. Powered Armor | x1 | -4/Factory Tri-rail Accelerator | x1 | -4/Factory Alien Tech Used ----------------- Integrated Reactor Transdimensional Reconstructor Dimensional Node Initializer Achievements -------------- Minesweeper Challenges ------------ None Game ------ Seed CoolingMediumCutter Manual? 0 Play Time 13:03:31 Cumulative 940.9 hours Start 2023.02.01 @ 18:21:18 End 2023.02.06 @ 20:10:23 Sessions 21 Manual Loads 0 Difficulty Rogue Special Mode None Game No. 204 Rogue 172 Adventurer 31 Explorer 1 Win Type 0 Total 43 Types 30/0/6/6/0/0/1/0/0 Lore% 86 Gallery% 89 Achievement% 77 Wizard Run 0 Options --------- ASCII 0 Keyboard 0 Movement Arrows Keybinds 0 Fullscreen 1 Font 20/Terminus Map View 66x50 Tactical HUD 1 Map Filters NONE Filters NONE Steam 1 RUN: b27abe11-38d8-401d-acb3-7a7c0438a96f